Workbook

Sheet Readme
A27: SCENARIO INPUT MATRIX
C29: Modelled increase in capacity (%) | N29: Modelled increase in capacity (figure)
C30: CC Beds | D30: G&A Beds | E30: CC Beds occupied by non-COVID-19 patients | F30: G&A Beds occupied by non-COVID-19 patients | G30: Ventilators | H30: CC nurses | I30: G&A nurses | J30: CC senior doctors | K30: CC junior doctors | L30: G&A senior doctors | M30: G&A junior doctors | N30: Generic beds | O30: CC Beds | P30: G&A Beds | Q30: Ventilators | R30: Generic nurses (Head count) | S30: CC nurses (FTE) | T30: G&A nurses (FTE) | U30: Generic doctors (Headcount) | V30: CC senior doctors (FTE) | W30: CC junior doctors (FTE) | X30: G&A senior doctors (FTE) | Y30: G&A junior doctors (FTE) | Z30: Theatres available | AA30: Number of beds per theatre
A31: Managing admissions | B31: Cancellation of elective operations | E31: x | F31: x
B32: National guidelines for the prioritisation of CC scenarios | E32: x
A33: Increasing and re-organising care | B33: Set up of field hospitals | O33: x | P33: x
B34: Use of private hospital resources | N34: x | Q34: x | R34: x | U34: x | Z34: x | AA34: x
B35: Conversion of operating theatres to CC wards | Z35: x | AA35: x
B36: Conversion of G&A beds into CC beds | P36: x
B37: Upskill G&A staff to work in CC wards | T37: x | Y37: x
B38: Return of former healthcare staff | R38: x | U38: x
B39: Deployment of newly qualified and final year nursing and medical students | T39: x | Y39: x
B40: Deployment of international doctors at the final stage of their conversion assessment | Y40: x
B41: Procurement of newly manufactured ventilators | Q41: x
A42: Combination of scenarios | B42: Set up of field hospitals & deployment of newly qualified and final year medical and nursing students | O42: x | P42: x | T42: x | Y42: x

Sheet Input (Quick)
A12: MANDATORY USER INPUTS
C14: Mandatory baseline inputs
D16: Total number of CC beds | G16: Number of COVID-19 patients in CC beds
D18: Total number of G&A beds | G18: Number of COVID-19 patients in G&A beds
D20: Number of CC beds occupied by non-COVID-19 patients | G20: COVID-19-related sickness rate for nurses (%)
D22: Number of G&A beds occupied by non-COVID-19 patients | G22: COVID-19-related sickness rate for doctors (%)
D24: Total number of ventilators | G24: Reference population size for output calculation
D26: Total CC nurses (FTE)
D28: Total G&A nurses (FTE)
D30: Total CC senior doctors (FTE)
D32: Total CC junior doctors (FTE)
D34: Total G&A senior doctors (FTE)
D36: Total G&A junior doctors (FTE)
A39: INTERVENTION ASSUMPTIONS: MODELLED INCREASE IN CAPACITY
A43: Managing admissions | B43: Cancellation of elective operations | D43: CC Beds occupied by non-COVID-19 patients (%) | G43: G&A Beds occupied by non-COVID-19 patients (%)
B45: National guidelines for the prioritisation of CC scenarios | D45: CC Beds occupied by non-COVID-19 patients (%)
A49: Increasing and re-organising care | B49: Set up of field hospitals | D49: CC Beds | G49: G&A Beds
B51: Use of private hospital resources | D51: Generic beds | G51: Ventilators | J51: Generic nurses (Headcount) | M51: Generic doctors (Headcount) | P51: Theatres available | S51: Number of beds per theatre
B53: Conversion of operating theatres to CC wards | D53: Theatres available | G53: Number of beds per theatre
B55: Conversion of G&A beds into CC beds | D55: G&A Beds
B57: Upskill G&A staff to work in CC wards | D57: G&A nurses (%) | G57: G&A junior doctors (%)
B59: Return of former healthcare staff | D59: Generic nurses (Headcount) | G59: Generic doctors (Headcount)
B61: Deployment of newly qualified and final year nursing and medical students | D61: G&A nurses (Headcount) | G61: G&A junior doctors (Headcount)
B63: Deployment of international doctors at the final stage of their conversion assessment | D63: G&A junior doctors (Headcount)
B65: Procurement of newly manufactured ventilators | D65: Ventilators
A69: Combination of interventions | B69: Set up of field hospitals & deployment of newly qualified and final year medical and nursing students | D69: CC Beds | G69: G&A Beds | J69: G&A nurses (Headcount) | M69: G&A junior doctors (Headcount)

Sheet Input (Extended)
A12: USER INPUTS
C14: Baseline Inputs on Existing Hospital Capacity | O14: Maximum Staff Ratio Allowances Inputs
C15: Total number of CC beds | D15: Total number of G&A beds | E15: Number of CC beds occupied by non-COVID-19 patients | F15: Number of G&A beds occupied by non-COVID-19 patients | G15: Percentage of non-COVID-19 CC patients requiring ventilator | H15: Total number of ventilators | I15: Total CC nurses (FTE) | J15: Total G&A nurses (FTE) | K15: Total CC senior doctors (FTE) | L15: Total CC junior doctors (FTE) | M15: Total G&A senior doctors (FTE) | N15: Total G&A junior doctors (FTE) | O15: Beds per CC nurse | P15: Beds per G&A nurse | Q15: Beds per CC senior doctor | R15: Beds per CC junior doctor | S15: Beds per G&A senior doctor | T15: Beds per G&A junior doctor
C16: =IF(ISBLANK('Input (Quick)'!E16),4123,'Input (Quick)'!E16) -> 4123 | D16: =IF(ISBLANK('Input (Quick)'!E18),99935,'Input (Quick)'!E18) -> 99935 | E16: =IF(ISBLANK('Input (Quick)'!E20),3423,'Input (Quick)'!E20) -> 3423 | F16: =IF(ISBLANK('Input (Quick)'!E22),91971,'Input (Quick)'!E22) -> 91971 | G16: 0.43 | H16: =IF(ISBLANK('Input (Quick)'!E24),8175,'Input (Quick)'!E24) -> 8175 | I16: =IF(ISBLANK('Input (Quick)'!E26),3939,'Input (Quick)'!E26) -> 3939 | J16: =IF(ISBLANK('Input (Quick)'!E28),32354,'Input (Quick)'!E28) -> 32354 | K16: =IF(ISBLANK('Input (Quick)'!E30),965,'Input (Quick)'!E30) -> 965 | L16: =IF(ISBLANK('Input (Quick)'!E32),677,'Input (Quick)'!E32) -> 677 | M16: =IF(ISBLANK('Input (Quick)'!E34),12680,'Input (Quick)'!E34) -> 12680 | N16: =IF(ISBLANK('Input (Quick)'!E36),10293,'Input (Quick)'!E36) -> 10293 | O16: 1 | P16: 5 | Q16: 15 | R16: 8 | S16: 15 | T16: 15
C18: COVID-19-related Inputs | H18: Additional Inputs
C19: Number of COVID-19 patients in CC beds | D19: Number of COVID-19 patients in G&A beds | E19: Percentage of COVID-19 CC patients requiring ventilator | F19: COVID-19-related sickness rate for nurses | G19: COVID-19-related sickness rate for doctors | H19: Headcount to FTE multiplier | I19: Reference population size for output calculation
C20: =IF(ISBLANK('Input (Quick)'!H16),1480,'Input (Quick)'!H16) -> 1480 | D20: =IF(ISBLANK('Input (Quick)'!H18),7770,'Input (Quick)'!H18) -> 7770 | E20: 0.63 | F20: =IF(ISBLANK('Input (Quick)'!H20),0.081,'Input (Quick)'!H20) -> 0.081 | G20: =IF(ISBLANK('Input (Quick)'!H22),0.14,'Input (Quick)'!H22) -> 0.14 | H20: 0.88 | I20: =IF(ISBLANK('Input (Quick)'!H24),55977200,'Input (Quick)'!H24) -> 55977200
A22: SCENARIO ASSUMPTIONS
C24: Modelled increase in capacity (%) | N24: Modelled increase in capacity (figure)
C25: CC Beds | D25: G&A Beds | E25: CC Beds occupied by non-COVID-19 patients | F25: G&A Beds occupied by non-COVID-19 patients | G25: Ventilators | H25: CC nurses | I25: G&A nurses | J25: CC senior doctors | K25: CC junior doctors | L25: G&A senior doctors | M25: G&A junior doctors | N25: Generic beds | O25: CC Beds | P25: G&A Beds | Q25: Ventilators | R25: Generic nurses (Headcount) | S25: CC nurses (FTE) | T25: G&A nurses (FTE) | U25: Generic doctors (Headcount) | V25: CC senior doctors (FTE) | W25: CC junior doctors (FTE) | X25: G&A senior doctors (FTE) | Y25: G&A junior doctors (FTE) | Z25: Theatres available | AA25: Number of beds per theatre | AB25: Add extra columns as required by additional scenarios.
A27: Managing admissions | B27: Cancellation of elective operations | C27: =O27/$C$16 -> 0 | D27: =P27/$D$16 -> 0 | E27: =IF(ISBLANK('Input (Quick)'!E43),0.3,'Input (Quick)'!E43) -> 0.3 | F27: =IF(ISBLANK('Input (Quick)'!H43),0.41,'Input (Quick)'!H43) -> 0.41 | G27: =Q27/$H$16 -> 0 | H27: =S27/$I$16 -> 0 | I27: =T27/$J$16 -> 0 | J27: =V27/$K$16 -> 0 | K27: =W27/$L$16 -> 0 | L27: =X27/$M$16 -> 0 | M27: =Y27/$N$16 -> 0 | N27: 0 | O27: 0 | P27: 0 | Q27: 0 | R27: 0 | S27: 0 | T27: 0 | U27: 0 | V27: 0 | W27: 0 | X27: 0 | Y27: 0 | Z27: 0 | AA27: 0
B28: National guidelines for the prioritisation of CC scenarios | C28: =O28/$C$16 -> 0 | D28: =P28/$D$16 -> 0 | E28: =IF(ISBLANK('Input (Quick)'!E45),0.6,'Input (Quick)'!E45) -> 0.6 | F28: 0 | G28: =Q28/$H$16 -> 0 | H28: =S28/$I$16 -> 0 | I28: =T28/$J$16 -> 0 | J28: =V28/$K$16 -> 0 | K28: =W28/$L$16 -> 0 | L28: =X28/$M$16 -> 0 | M28: =Y28/$N$16 -> 0 | N28: 0 | O28: 0 | P28: 0 | Q28: 0 | R28: 0 | S28: 0 | T28: 0 | U28: 0 | V28: 0 | W28: 0 | X28: 0 | Y28: 0 | Z28: 0 | AA28: 0
B29: Add extra rows as necessary for additional demand-side scenarios
A31: Increasing and re-organising care | B31: Set up of field hospitals | C31: =(O31+(Z31*AA31))/$C$16 -> 0.1212709192 | D31: =P31/$D$16 -> 0.08005203382 | E31: 0 | F31: 0 | G31: =Q31/$H$16 -> 0 | H31: =S31/$I$16 -> 0 | I31: =T31/$J$16 -> 0 | J31: =V31/$K$16 -> 0 | K31: =W31/$L$16 -> 0 | L31: =X31/$M$16 -> 0 | M31: =Y31/$N$16 -> 0 | N31: 0 | O31: =IF(ISBLANK('Input (Quick)'!E49),500,'Input (Quick)'!E49) -> 500 | P31: =IF(ISBLANK('Input (Quick)'!H49),8000,'Input (Quick)'!H49) -> 8000 | Q31: 0 | R31: 0 | S31: 0 | T31: 0 | U31: 0 | V31: 0 | W31: 0 | X31: 0 | Y31: 0 | Z31: 0 | AA31: 0
B32: Use of private hospital resources | C32: 0.08027578716 | D32: 0.07688020143 | E32: 0 | F32: 0 | G32: 0.1467889908 | H32: 0.2424709999 | I32: 0.2424709999 | J32: 0.02502539102 | K32: 0.02502539102 | L32: 0.02502539102 | M32: 0.02502539102 | N32: =IF(ISBLANK('Input (Quick)'!E51),8000,'Input (Quick)'!E51) -> 8000 | O32: =C49*N32 -> 316.9770705 | P32: =D49*N32 -> 7683.02293 | Q32: =IF(ISBLANK('Input (Quick)'!H51),1200,'Input (Quick)'!H51) -> 1200 | R32: =IF(ISBLANK('Input (Quick)'!K51),10000,'Input (Quick)'!K51) -> 10000 | S32: =H20*E49*R32 -> 955.0932687 | T32: =H20*F49*R32 -> 7844.906731 | U32: =IF(ISBLANK('Input (Quick)'!N51),700,'Input (Quick)'!N51) -> 700 | V32: =H20*G49*U32 -> 24.14950234 | W32: =H20*H49*U32 -> 16.94218972 | X32: =H20*I49*U32 -> 317.3219582 | Y32: =H20*J49*U32 -> 257.5863498 | Z32: =IF(ISBLANK('Input (Quick)'!Q51),7,'Input (Quick)'!Q51) -> 7 | AA32: =IF(ISBLANK('Input (Quick)'!T51),2,'Input (Quick)'!T51) -> 2
B33: Conversion of operating theatres to CC wards | C33: 1.166141159 | D33: 0 | E33: 0 | F33: 0 | G33: 0 | H33: 0 | I33: 0 | J33: 0 | K33: 0 | L33: 0 | M33: 0 | N33: 0 | O33: 0 | P33: 0 | Q33: 0 | R33: 0 | S33: 0 | T33: 0 | U33: 0 | V33: 0 | W33: 0 | X33: 0 | Y33: 0 | Z33: =IF(ISBLANK('Input (Quick)'!E53),2404,'Input (Quick)'!E53) -> 2404 | AA33: =IF(ISBLANK('Input (Quick)'!H53),2,'Input (Quick)'!H53) -> 2
B34: Conversion of G&A beds into CC beds | C34: 0.4850836769 | D34: -0.02001300846 | E34: 0 | F34: 0 | G34: 0 | H34: 0 | I34: 0 | J34: 0 | K34: 0 | L34: 0 | M34: 0 | N34: 0 | O34: =-P34 -> 2000 | P34: =IF(ISBLANK('Input (Quick)'!E55),-2000,'Input (Quick)'!E55) -> -2000 | Q34: 0 | R34: 0 | S34: 0 | T34: 0 | U34: 0 | V34: 0 | W34: 0 | X34: 0 | Y34: 0 | Z34: 0 | AA34: 0
B35: Upskill G&A staff to work in CC wards | C35: 0 | D35: 0 | E35: 0 | F35: 0 | G35: 0 | H35: 0.1642751968 | I35: -0.02 | J35: 0 | K35: 0.3040768095 | L35: 0 | M35: -0.02 | N35: 0 | O35: 0 | P35: 0 | Q35: 0 | R35: 0 | S35: =-T35 -> 647.08 | T35: =IF(ISBLANK('Input (Quick)'!E57),-0.02*J16,-'Input (Quick)'!E57*J17) -> -647.08 | U35: 0 | V35: 0 | W35: =-Y35 -> 205.86 | X35: 0 | Y35: =IF(ISBLANK('Input (Quick)'!H57),-0.02*N16,-'Input (Quick)'!H57*N16) -> -205.86 | Z35: 0 | AA35: 0
B36: Return of former healthcare staff | C36: 0 | D36: 0 | E36: 0 | F36: 0 | G36: 0 | H36: 0.1490469236 | I36: 0.1490469236 | J36: 0.09509648588 | K36: 0.09509648588 | L36: 0.09509648588 | M36: 0.09509648588 | N36: 0 | O36: 0 | P36: 0 | Q36: 0 | R36: =IF(ISBLANK('Input (Quick)'!E59),6147,'Input (Quick)'!E59) -> 6147 | S36: =H20*E49 *R36 -> 587.0958323 | T36: =H20*F49*R36 -> 4822.264168 | U36: =IF(ISBLANK('Input (Quick)'!H59),2660,'Input (Quick)'!H59) -> 2660 | V36: =H20*G49 *U36 -> 91.76810888 | W36: =H20*H49 *U36 -> 64.38032094 | X36: =H20*I49 *U36 -> 1205.823441 | Y36: =H20*J49 *U36 -> 978.8281292 | Z36: 0 | AA36: 0
B37: Deployment of newly qualified and final year nursing and medical students | C37: 0 | D37: 0 | E37: 0 | F37: 0 | G37: 0 | H37: 0 | I37: 0.5086233541 | J37: 0 | K37: 0 | L37: 0 | M37: 0.4702224813 | N37: 0 | O37: 0 | P37: 0 | Q37: 0 | R37: 0 | S37: 0 | T37: =IF(ISBLANK('Input (Quick)'!E61),H20*18700,H20*'Input (Quick)'!E61) -> 16456 | U37: 0 | V37: 0 | W37: 0 | X37: 0 | Y37: =IF(ISBLANK('Input (Quick)'!H61),H20*5500,H20*'Input (Quick)'!H61) -> 4840 | Z37: 0 | AA37: 0
B38: Deployment of international doctors at the final stage of their conversion assessment | C38: 0 | D38: 0 | E38: 0 | F38: 0 | G38: 0 | H38: 0 | I38: 0 | J38: 0 | K38: 0 | L38: 0 | M38: 0.02564849898 | N38: 0 | O38: 0 | P38: 0 | Q38: 0 | R38: 0 | S38: 0 | T38: 0 | U38: 0 | V38: 0 | W38: 0 | X38: 0 | Y38: =IF(ISBLANK('Input (Quick)'!E63),H20*300,H20*'Input (Quick)'!E63) -> 264 | Z38: 0 | AA38: 0
B39: Procurement of newly manufactured ventilators | C39: 0 | D39: 0 | E39: 0 | F39: 0 | G39: 2.44648318 | H39: 0 | I39: 0 | J39: 0 | K39: 0 | L39: 0 | M39: 0 | N39: 0 | O39: 0 | P39: 0 | Q39: =IF(ISBLANK('Input (Quick)'!E65),20000,'Input (Quick)'!E65) -> 20000 | R39: 0 | S39: 0 | T39: 0 | U39: 0 | V39: 0 | W39: 0 | X39: 0 | Y39: 0 | Z39: 0 | AA39: 0
B40: Add extra rows as necessary for additional supply-side scenarios
A42: Combination of scenarios | B42: Set up of field hospitals & deployment of newly qualified and final year medical and nursing students | C42: =(O42+(Z42*AA42))/$C$16 -> 0.1212709192 | D42: =P42/$D$16 -> 0.08005203382 | E42: 0 | F42: 0 | G42: =Q42/$H$16 -> 0 | H42: =S42/$I$16 -> 0 | I42: =T42/$J$16 -> 0.5086233541 | J42: =V42/$K$16 -> 0 | K42: =W42/$L$16 -> 0 | L42: =X42/$M$16 -> 0 | M42: =Y42/$N$16 -> 0.4702224813 | N42: 0 | O42: =IF(ISBLANK('Input (Quick)'!E69),500,'Input (Quick)'!E69) -> 500 | P42: =IF(ISBLANK('Input (Quick)'!H69),8000,'Input (Quick)'!H69) -> 8000 | Q42: 0 | R42: 0 | S42: 0 | T42: =IF(ISBLANK('Input (Quick)'!K69),H20*18700,H20*'Input (Quick)'!K69) -> 16456 | U42: 0 | V42: 0 | W42: 0 | X42: 0 | Y42: =IF(ISBLANK('Input (Quick)'!N69),H20*5500,H20*'Input (Quick)'!N69) -> 4840 | Z42: 0 | AA42: 0
B43: Add extra rows as necessary for additional combinations of scenarios
A45: PROPORTIONS (CALCULATED FROM BASELINE)
C47: CC and G&A Proportions
C48: Proportion of beds which are CC | D48: Proportion of beds which are G&A | E48: Proportion of nurses which are CC | F48: Proportion of nurses which are G&A | G48: Proportion of doctors which are senior CC | H48: Proportion of doctors which are junior CC | I48: Proportion of doctors which are senior G&A | J48: Proportion of doctors which are junior G&A
B49: Proportions | C49: =C16/(C16+D16) -> 0.03962213381 | D49: =D16/(C16+D16) -> 0.9603778662 | E49: =I16/SUM(I16:J16) -> 0.108533326 | F49: =J16/SUM(I16:J16) -> 0.891466674 | G49: =K16/SUM(K16:N16) -> 0.03920373756 | H49: =L16/SUM(K16:N16) -> 0.02750355474 | I49: =M16/SUM(K16:N16) -> 0.515133049 | J49: =N16/SUM(K16:N16) -> 0.4181596587

Sheet Output (Numeric)
C10: SPARE CAPACITY PER 10,000 POPULATION | L10: PERCENT CHANGE IN SPARE CAPACITY COMPARED TO BASELINE | U10: STAFF PLANNER: STAFF REQUIRED FOR TOTAL BED NUMBERS | AB10: CALCULATIONS: DIFFERENCE FROM BASELINE
C11: CC beds | D11: G&A beds | E11: Ventilators | F11: CC nurses | G11: G&A nurses | H11: CC senior doctors | I11: CC junior doctors | J11: G&A senior doctors | K11: G&A junior doctors | L11: CC beds | M11: G&A beds | N11: Ventilators | O11: CC nurses | P11: G&A nurses | Q11: CC senior doctors | R11: CC junior doctors | S11: G&A senior doctors | T11: G&A junior doctors | U11: CC nurses needed for total bed numbers | V11: G&A nurses needed for total bed numbers | W11: CC senior doctors needed for total bed numbers | X11: CC junior doctors needed for total bed numbers | Y11: G&A senior doctors needed for total bed numbers | Z11: G&A junior doctors needed for total bed numbers | AB11: Total CC beds | AC11: Total G&A beds | AD11: CC beds occupied non-COVID-19 | AE11: G&A beds occupied non-COVID-19 | AF11: CC beds needed total (for non-COVID-19 + COVID-19 patients) | AG11: G&A beds needed total (for non-COVID-19 + COVID-19 patients) | AH11: Total ventilators | AI11: Total CC nurses (FTE) | AJ11: CC nurse to beds needed ratio | AK11: Total G&A nurses (FTE) | AL11: G&A nurse to beds needed ratio | AM11: Total CC senior doctors (FTE) | AN11: CC senior doctor to beds needed ratio | AO11: Total CC junior doctors (FTE) | AP11: CC junior doctor to beds needed ratio | AQ11: Total G&A senior doctors (FTE) | AR11: G&A senior doctor to beds needed ratio | AS11: Total G&A junior doctors (FTE) | AT11: G&A junior doctor to beds needed ratio | AU11: Ventilators needed for patients | AV11: CC nurses needed for patients | AW11: G&A nurses needed for patients | AX11: CC senior doctors needed for patients | AY11: CC junior doctors needed for patients | AZ11: G&A senior doctors needed for patients | BA11: G&A junior doctors needed for patients
A12: Baseline
C13: =ROUND((AB13-AF13)*10000/'Input (Extended)'!I20,2) -> -0.14 | D13: =ROUND((AC13-AG13)*10000/'Input (Extended)'!I20,2) -> 0.03 | E13: =ROUND((AH13-AU13)*10000/'Input (Extended)'!I20,2) -> 1.03 | F13: =ROUND((AI13-AV13)*10000/'Input (Extended)'!I20,2) -> -0.23 | G13: =ROUND((AK13-AW13)*10000/'Input (Extended)'!I20,2) -> 1.75 | H13: =ROUND((AM13-AX13)*10000/'Input (Extended)'!I20,2) -> 0.09 | I13: =ROUND((AO13-AY13)*10000/'Input (Extended)'!I20,2) -> -0.01 | J13: =ROUND((AQ13-AZ13)*10000/'Input (Extended)'!I20,2) -> 0.76 | K13: =ROUND((AS13-BA13)*10000/'Input (Extended)'!I20,2) -> 0.39 | U13: =AB13/'Input (Extended)'!$O$16 -> 4123 | V13: =AC13/'Input (Extended)'!$P$16 -> 19987 | W13: =AB13/'Input (Extended)'!$Q$16 -> 274.8666667 | X13: =AB13/'Input (Extended)'!$R$16 -> 515.375 | Y13: =AC13/'Input (Extended)'!$S$16 -> 6662.333333 | Z13: =AC13/'Input (Extended)'!$T$16 -> 6662.333333 | AB13: ='Input (Extended)'!C16 -> 4123 | AC13: ='Input (Extended)'!D16 -> 99935 | AD13: ='Input (Extended)'!E16 -> 3423 | AE13: ='Input (Extended)'!F16 -> 91971 | AF13: =AD13+'Input (Extended)'!$C$20 -> 4903 | AG13: =AE13+'Input (Extended)'!$D$20 -> 99741 | AH13: ='Input (Extended)'!H16 -> 8175 | AI13: =(1-'Input (Extended)'!F20)*'Input (Extended)'!I16 -> 3619.941 | AJ13: =AF13/AI13 -> 1.354441965 | AK13: =(1-'Input (Extended)'!F20)*'Input (Extended)'!J16 -> 29733.326 | AL13: =AG13/AK13 -> 3.354518765 | AM13: =(1-'Input (Extended)'!G20)*'Input (Extended)'!K16 -> 829.9 | AN13: =AF13/AM13 -> 5.907940716 | AO13: =(1-'Input (Extended)'!G20)*'Input (Extended)'!L16 -> 582.22 | AP13: =AF13/AO13 -> 8.421215348 | AQ13: =(1-'Input (Extended)'!G20)*'Input (Extended)'!M16 -> 10904.8 | AR13: =AG13/AQ13 -> 9.146522632 | AS13: =(1-'Input (Extended)'!G20)*'Input (Extended)'!N16 -> 8851.98 | AT13: =AG13/AS13 -> 11.26764859 | AU13: =(AD13*'Input (Extended)'!G16)+('Input (Extended)'!C20*'Input (Extended)'!E20) -> 2404.29 | AV13: =AF13/'Input (Extended)'!$O$16 -> 4903 | AW13: =AG13/'Input (Extended)'!$P$16 -> 19948.2 | AX13: =AF13/'Input (Extended)'!$Q$16 -> 326.8666667 | AY13: =AF13/'Input (Extended)'!$R$16 -> 612.875 | AZ13: =AG13/'Input (Extended)'!$S$16 -> 6649.4 | BA13: =AG13/'Input (Extended)'!$T$16 -> 6649.4
A14: Managing admissions
B15: Cancellation of elective operations | C15: =ROUND((AB15-AF15)*10000/'Input (Extended)'!I20,2) -> 0.04 | D15: =ROUND((AC15-AG15)*10000/'Input (Extended)'!I20,2) -> 6.77 | E15: =ROUND((AH15-AU15)*10000/'Input (Extended)'!I20,2) -> 1.11 | F15: =ROUND((AI15-AV15)*10000/'Input (Extended)'!I20,2) -> -0.05 | G15: =ROUND((AK15-AW15)*10000/'Input (Extended)'!I20,2) -> 3.1 | H15: =ROUND((AM15-AX15)*10000/'Input (Extended)'!I20,2) -> 0.1 | I15: =ROUND((AO15-AY15)*10000/'Input (Extended)'!I20,2) -> 0.02 | J15: =ROUND((AQ15-AZ15)*10000/'Input (Extended)'!I20,2) -> 1.21 | K15: =ROUND((AS15-BA15)*10000/'Input (Extended)'!I20,2) -> 0.84 | L15: =IF(C13=0,0,(C15-C13)/ABS(C13)) -> 1.285714286 | M15: =IF(D13=0,0,(D15-D13)/ABS(D13)) -> 224.6666667 | N15: 0.07766990291 | O15: 0.7826086957 | P15: 0.7714285714 | Q15: 0.1111111111 | R15: 3 | S15: 0.5921052632 | T15: 1.153846154 | U15: =AB15/'Input (Extended)'!$O$16 -> 4123 | V15: =AC15/'Input (Extended)'!$P$16 -> 19987 | W15: =AB15/'Input (Extended)'!$Q$16 -> 274.8666667 | X15: =AB15/'Input (Extended)'!$R$16 -> 515.375 | Y15: =AC15/'Input (Extended)'!$S$16 -> 6662.333333 | Z15: =AC15/'Input (Extended)'!$T$16 -> 6662.333333 | AB15: =(1+'Input (Extended)'!C27)*$AB$13 -> 4123 | AC15: =(1+'Input (Extended)'!D27)*$AC$13 -> 99935 | AD15: =(1-'Input (Extended)'!E27)*$AD$13 -> 2396.1 | AE15: =(1-'Input (Extended)'!F27)*$AE$13 -> 54262.89 | AF15: =AD15+'Input (Extended)'!$C$20 -> 3876.1 | AG15: =AE15+'Input (Extended)'!$D$20 -> 62032.89 | AH15: =(1+'Input (Extended)'!G27)*$AH$13 -> 8175 | AI15: =(1+'Input (Extended)'!H27)*(1-'Input (Extended)'!$F$20)*'Input (Extended)'!$I$16 -> 3619.941 | AJ15: =AF15/AI15 -> 1.070763308 | AK15: =(1+'Input (Extended)'!I27)*(1-'Input (Extended)'!$F$20)*'Input (Extended)'!$J$16 -> 29733.326 | AL15: =AG15/AK15 -> 2.086308474 | AM15: =(1+'Input (Extended)'!J27)*(1-'Input (Extended)'!$G$20)*'Input (Extended)'!$K$16 -> 829.9 | AN15: =AF15/AM15 -> 4.670562718 | AO15: =(1+'Input (Extended)'!K27)*(1-'Input (Extended)'!$G$20)*'Input (Extended)'!$L$16 -> 582.22 | AP15: =AF15/AO15 -> 6.657449074 | AQ15: =(1+'Input (Extended)'!L27)*(1-'Input (Extended)'!$G$20)*'Input (Extended)'!$M$16 -> 10904.8 | AR15: =AG15/AQ15 -> 5.68858576 | AS15: =(1+'Input (Extended)'!M27)*(1-'Input (Extended)'!$G$20)*'Input (Extended)'!$N$16 -> 8851.98 | AT15: =AG15/AS15 -> 7.007798255 | AU15: =(AD15*'Input (Extended)'!$G$16)+('Input (Extended)'!$C$20*'Input (Extended)'!$E$20) -> 1962.723 | AV15: =AF15/'Input (Extended)'!$O$16 -> 3876.1 | AW15: =AG15/'Input (Extended)'!$P$16 -> 12406.578 | AX15: =AF15/'Input (Extended)'!$Q$16 -> 258.4066667 | AY15: =AF15/'Input (Extended)'!$R$16 -> 484.5125 | AZ15: =AG15/'Input (Extended)'!$S$16 -> 4135.526 | BA15: =AG15/'Input (Extended)'!$T$16 -> 4135.526
B16: National guidelines for the prioritisation of CC scenarios | C16: =ROUND((AB16-AF16)*10000/'Input (Extended)'!I20,2) -> 0.23 | D16: =ROUND((AC16-AG16)*10000/'Input (Extended)'!I20,2) -> 0.03 | E16: =ROUND((AH16-AU16)*10000/'Input (Extended)'!I20,2) -> 1.19 | F16: =ROUND((AI16-AV16)*10000/'Input (Extended)'!I20,2) -> 0.14 | G16: =ROUND((AK16-AW16)*10000/'Input (Extended)'!I20,2) -> 1.75 | H16: =ROUND((AM16-AX16)*10000/'Input (Extended)'!I20,2) -> 0.11 | I16: =ROUND((AO16-AY16)*10000/'Input (Extended)'!I20,2) -> 0.04 | J16: =ROUND((AQ16-AZ16)*10000/'Input (Extended)'!I20,2) -> 0.76 | K16: =ROUND((AS16-BA16)*10000/'Input (Extended)'!I20,2) -> 0.39 | L16: =IF(C13 = 0,0,(C16-C13)/ABS(C13)) -> 2.642857143 | M16: =IF(D13 = 0,0,(D16-D13)/ABS(D13)) -> 0 | N16: 0.1553398058 | O16: 1.608695652 | P16: 0 | Q16: 0.2222222222 | R16: 5 | S16: 0 | T16: 0 | U16: =AB16/'Input (Extended)'!$O$16 -> 4123 | V16: =AC16/'Input (Extended)'!$P$16 -> 19987 | W16: =AB16/'Input (Extended)'!$Q$16 -> 274.8666667 | X16: =AB16/'Input (Extended)'!$R$16 -> 515.375 | Y16: =AC16/'Input (Extended)'!$S$16 -> 6662.333333 | Z16: =AC16/'Input (Extended)'!$T$16 -> 6662.333333 | AB16: =(1+'Input (Extended)'!C28)*$AB$13 -> 4123 | AC16: =(1+'Input (Extended)'!D28)*$AC$13 -> 99935 | AD16: =(1-'Input (Extended)'!E28)*$AD$13 -> 1369.2 | AE16: =(1-'Input (Extended)'!F28)*$AE$13 -> 91971 | AF16: =AD16+'Input (Extended)'!$C$20 -> 2849.2 | AG16: =AE16+'Input (Extended)'!$D$20 -> 99741 | AH16: =(1+'Input (Extended)'!G28)*$AH$13 -> 8175 | AI16: =(1+'Input (Extended)'!H28)*(1-'Input (Extended)'!$F$20)*'Input (Extended)'!$I$16 -> 3619.941 | AJ16: =AF16/AI16 -> 0.7870846514 | AK16: =(1+'Input (Extended)'!I28)*(1-'Input (Extended)'!$F$20)*'Input (Extended)'!$J$16 -> 29733.326 | AL16: =AG16/AK16 -> 3.354518765 | AM16: =(1+'Input (Extended)'!J28)*(1-'Input (Extended)'!$G$20)*'Input (Extended)'!$K$16 -> 829.9 | AN16: =AF16/AM16 -> 3.433184721 | AO16: =(1+'Input (Extended)'!K28)*(1-'Input (Extended)'!$G$20)*'Input (Extended)'!$L$16 -> 582.22 | AP16: =AF16/AO16 -> 4.8936828 | AQ16: =(1+'Input (Extended)'!L28)*(1-'Input (Extended)'!$G$20)*'Input (Extended)'!$M$16 -> 10904.8 | AR16: =AG16/AQ16 -> 9.146522632 | AS16: =(1+'Input (Extended)'!M28)*(1-'Input (Extended)'!$G$20)*'Input (Extended)'!$N$16 -> 8851.98 | AT16: =AG16/AS16 -> 11.26764859 | AU16: =(AD16*'Input (Extended)'!$G$16)+('Input (Extended)'!$C$20*'Input (Extended)'!$E$20) -> 1521.156 | AV16: =AF16/'Input (Extended)'!$O$16 -> 2849.2 | AW16: =AG16/'Input (Extended)'!$P$16 -> 19948.2 | AX16: =AF16/'Input (Extended)'!$Q$16 -> 189.9466667 | AY16: =AF16/'Input (Extended)'!$R$16 -> 356.15 | AZ16: =AG16/'Input (Extended)'!$S$16 -> 6649.4 | BA16: =AG16/'Input (Extended)'!$T$16 -> 6649.4
B17: Add extra rows as necessary for additional demand-side scenarios
A19: Increasing and re-organising care | B19: Set up of field hospitals | C19: =ROUND((AB19-AF19)*10000/'Input (Extended)'!I20,2) -> -0.05 | D19: =ROUND((AC19-AG19)*10000/'Input (Extended)'!I20,2) -> 1.46 | E19: =ROUND((AH19-AU19)*10000/'Input (Extended)'!I20,2) -> 1.03 | F19: =ROUND((AI19-AV19)*10000/'Input (Extended)'!I20,2) -> -0.23 | G19: =ROUND((AK19-AW19)*10000/'Input (Extended)'!I20,2) -> 1.75 | H19: =ROUND((AM19-AX19)*10000/'Input (Extended)'!I20,2) -> 0.09 | I19: =ROUND((AO19-AY19)*10000/'Input (Extended)'!I20,2) -> -0.01 | J19: =ROUND((AQ19-AZ19)*10000/'Input (Extended)'!I20,2) -> 0.76 | K19: =ROUND((AS19-BA19)*10000/'Input (Extended)'!I20,2) -> 0.39 | L19: =IF(C13 = 0, 0,(C19-C13)/ABS(C13)) -> 0.6428571429 | M19: =IF(D13 = 0, 0,(D19-D13)/ABS(D13)) -> 47.66666667 | N19: 0 | O19: 0 | P19: 0 | Q19: 0 | R19: 0 | S19: 0 | T19: 0 | U19: =AB19/'Input (Extended)'!$O$16 -> 4623 | V19: =AC19/'Input (Extended)'!$P$16 -> 21587 | W19: =AB19/'Input (Extended)'!$Q$16 -> 308.2 | X19: =AB19/'Input (Extended)'!$R$16 -> 577.875 | Y19: =AC19/'Input (Extended)'!$S$16 -> 7195.666667 | Z19: =AC19/'Input (Extended)'!$T$16 -> 7195.666667 | AB19: =(1+'Input (Extended)'!C31)*$AB$13 -> 4623 | AC19: =(1+'Input (Extended)'!D31)*$AC$13 -> 107935 | AD19: =(1-'Input (Extended)'!E31)*$AD$13 -> 3423 | AE19: =(1-'Input (Extended)'!F31)*$AE$13 -> 91971 | AF19: =AD19+'Input (Extended)'!$C$20 -> 4903 | AG19: =AE19+'Input (Extended)'!$D$20 -> 99741 | AH19: =(1+'Input (Extended)'!G31)*$AH$13 -> 8175 | AI19: =(1+'Input (Extended)'!H31)*(1-'Input (Extended)'!$F$20)*'Input (Extended)'!$I$16 -> 3619.941 | AJ19: =AF19/AI19 -> 1.354441965 | AK19: =(1+'Input (Extended)'!I31)*(1-'Input (Extended)'!$F$20)*'Input (Extended)'!$J$16 -> 29733.326 | AL19: =AG19/AK19 -> 3.354518765 | AM19: =(1+'Input (Extended)'!J31)*(1-'Input (Extended)'!$G$20)*'Input (Extended)'!$K$16 -> 829.9 | AN19: =AF19/AM19 -> 5.907940716 | AO19: =(1+'Input (Extended)'!K31)*(1-'Input (Extended)'!$G$20)*'Input (Extended)'!$L$16 -> 582.22 | AP19: =AF19/AO19 -> 8.421215348 | AQ19: =(1+'Input (Extended)'!L31)*(1-'Input (Extended)'!$G$20)*'Input (Extended)'!$M$16 -> 10904.8 | AR19: =AG19/AQ19 -> 9.146522632 | AS19: =(1+'Input (Extended)'!M31)*(1-'Input (Extended)'!$G$20)*'Input (Extended)'!$N$16 -> 8851.98 | AT19: =AG19/AS19 -> 11.26764859 | AU19: =(AD19*'Input (Extended)'!$G$16)+('Input (Extended)'!$C$20*'Input (Extended)'!$E$20) -> 2404.29 | AV19: =AF19/'Input (Extended)'!$O$16 -> 4903 | AW19: =AG19/'Input (Extended)'!$P$16 -> 19948.2 | AX19: =AF19/'Input (Extended)'!$Q$16 -> 326.8666667 | AY19: =AF19/'Input (Extended)'!$R$16 -> 612.875 | AZ19: =AG19/'Input (Extended)'!$S$16 -> 6649.4 | BA19: =AG19/'Input (Extended)'!$T$16 -> 6649.4
B20: Use of private hospital resources | C20: =ROUND((AB20-AF20)*10000/'Input (Extended)'!I20,2) -> -0.08 | D20: =ROUND((AC20-AG20)*10000/'Input (Extended)'!I20,2) -> 1.41 | E20: =ROUND((AH20-AU20)*10000/'Input (Extended)'!I20,2) -> 1.25 | F20: =ROUND((AI20-AV20)*10000/'Input (Extended)'!I20,2) -> -0.07 | G20: =ROUND((AK20-AW20)*10000/'Input (Extended)'!I20,2) -> 3.04 | H20: =ROUND((AM20-AX20)*10000/'Input (Extended)'!I20,2) -> 0.09 | I20: =ROUND((AO20-AY20)*10000/'Input (Extended)'!I20,2) -> 0 | J20: =ROUND((AQ20-AZ20)*10000/'Input (Extended)'!I20,2) -> 0.81 | K20: =ROUND((AS20-BA20)*10000/'Input (Extended)'!I20,2) -> 0.43 | L20: =IF(C13=0,0,(C20-C13)/ABS(C13)) -> 0.4285714286 | M20: =IF(D13=0,0,(D20-D13)/ABS(D13)) -> 46 | N20: 0.213592233 | O20: 0.6956521739 | P20: 0.7371428571 | Q20: 0 | R20: 1 | S20: 0.06578947368 | T20: 0.1025641026 | U20: =AB20/'Input (Extended)'!$O$16 -> 4453.97707 | V20: =AC20/'Input (Extended)'!$P$16 -> 21523.60459 | W20: =AB20/'Input (Extended)'!$Q$16 -> 296.9318047 | X20: =AB20/'Input (Extended)'!$R$16 -> 556.7471338 | Y20: =AC20/'Input (Extended)'!$S$16 -> 7174.534862 | Z20: =AC20/'Input (Extended)'!$T$16 -> 7174.534862 | AB20: =(1+'Input (Extended)'!C32)*$AB$13 -> 4453.97707 | AC20: =(1+'Input (Extended)'!D32)*$AC$13 -> 107618.0229 | AD20: =(1-'Input (Extended)'!E32)*$AD$13 -> 3423 | AE20: =(1-'Input (Extended)'!F32)*$AE$13 -> 91971 | AF20: =AD20+'Input (Extended)'!$C$20 -> 4903 | AG20: =AE20+'Input (Extended)'!$D$20 -> 99741 | AH20: =(1+'Input (Extended)'!G32)*$AH$13 -> 9375 | AI20: =(1+'Input (Extended)'!H32)*(1-'Input (Extended)'!$F$20)*'Input (Extended)'!$I$16 -> 4497.671714 | AJ20: =AF20/AI20 -> 1.09011958 | AK20: =(1+'Input (Extended)'!I32)*(1-'Input (Extended)'!$F$20)*'Input (Extended)'!$J$16 -> 36942.79529 | AL20: =AG20/AK20 -> 2.69987691 | AM20: =(1+'Input (Extended)'!J32)*(1-'Input (Extended)'!$G$20)*'Input (Extended)'!$K$16 -> 850.668572 | AN20: =AF20/AM20 -> 5.763701824 | AO20: =(1+'Input (Extended)'!K32)*(1-'Input (Extended)'!$G$20)*'Input (Extended)'!$L$16 -> 596.7902832 | AP20: =AF20/AO20 -> 8.215616337 | AQ20: =(1+'Input (Extended)'!L32)*(1-'Input (Extended)'!$G$20)*'Input (Extended)'!$M$16 -> 11177.69688 | AR20: =AG20/AQ20 -> 8.923215671 | AS20: =(1+'Input (Extended)'!M32)*(1-'Input (Extended)'!$G$20)*'Input (Extended)'!$N$16 -> 9073.504261 | AT20: =AG20/AS20 -> 10.99255559 | AU20: =(AD20*'Input (Extended)'!$G$16)+('Input (Extended)'!$C$20*'Input (Extended)'!$E$20) -> 2404.29 | AV20: =AF20/'Input (Extended)'!$O$16 -> 4903 | AW20: =AG20/'Input (Extended)'!$P$16 -> 19948.2 | AX20: =AF20/'Input (Extended)'!$Q$16 -> 326.8666667 | AY20: =AF20/'Input (Extended)'!$R$16 -> 612.875 | AZ20: =AG20/'Input (Extended)'!$S$16 -> 6649.4 | BA20: =AG20/'Input (Extended)'!$T$16 -> 6649.4
B21: Conversion of operating theatres to CC wards | C21: =ROUND((AB21-AF21)*10000/'Input (Extended)'!I20,2) -> 0.72 | D21: =ROUND((AC21-AG21)*10000/'Input (Extended)'!I20,2) -> 0.03 | E21: =ROUND((AH21-AU21)*10000/'Input (Extended)'!I20,2) -> 1.03 | F21: =ROUND((AI21-AV21)*10000/'Input (Extended)'!I20,2) -> -0.23 | G21: =ROUND((AK21-AW21)*10000/'Input (Extended)'!I20,2) -> 1.75 | H21: =ROUND((AM21-AX21)*10000/'Input (Extended)'!I20,2) -> 0.09 | I21: =ROUND((AO21-AY21)*10000/'Input (Extended)'!I20,2) -> -0.01 | J21: =ROUND((AQ21-AZ21)*10000/'Input (Extended)'!I20,2) -> 0.76 | K21: =ROUND((AS21-BA21)*10000/'Input (Extended)'!I20,2) -> 0.39 | L21: =IF(C13=0,0,(C21-C13)/ABS(C13)) -> 6.142857143 | M21: =IF(D13=0,0,(D21-D13)/ABS(D13)) -> 0 | N21: 0 | O21: 0 | P21: 0 | Q21: 0 | R21: 0 | S21: 0 | T21: 0 | U21: =AB21/'Input (Extended)'!$O$16 -> 8931 | V21: =AC21/'Input (Extended)'!$P$16 -> 19987 | W21: =AB21/'Input (Extended)'!$Q$16 -> 595.4 | X21: =AB21/'Input (Extended)'!$R$16 -> 1116.375 | Y21: =AC21/'Input (Extended)'!$S$16 -> 6662.333333 | Z21: =AC21/'Input (Extended)'!$T$16 -> 6662.333333 | AB21: =(1+'Input (Extended)'!C33)*$AB$13 -> 8931 | AC21: =(1+'Input (Extended)'!D33)*$AC$13 -> 99935 | AD21: =(1-'Input (Extended)'!E33)*$AD$13 -> 3423 | AE21: =(1-'Input (Extended)'!F33)*$AE$13 -> 91971 | AF21: =AD21+'Input (Extended)'!$C$20 -> 4903 | AG21: =AE21+'Input (Extended)'!$D$20 -> 99741 | AH21: =(1+'Input (Extended)'!G33)*$AH$13 -> 8175 | AI21: =(1+'Input (Extended)'!H33)*(1-'Input (Extended)'!$F$20)*'Input (Extended)'!$I$16 -> 3619.941 | AJ21: 1.354441965 | AK21: =(1+'Input (Extended)'!I33)*(1-'Input (Extended)'!$F$20)*'Input (Extended)'!$J$16 -> 29733.326 | AL21: 3.354518765 | AM21: =(1+'Input (Extended)'!J33)*(1-'Input (Extended)'!$G$20)*'Input (Extended)'!$K$16 -> 829.9 | AN21: 5.907940716 | AO21: =(1+'Input (Extended)'!K33)*(1-'Input (Extended)'!$G$20)*'Input (Extended)'!$L$16 -> 582.22 | AP21: 8.421215348 | AQ21: =(1+'Input (Extended)'!L33)*(1-'Input (Extended)'!$G$20)*'Input (Extended)'!$M$16 -> 10904.8 | AR21: 9.146522632 | AS21: =(1+'Input (Extended)'!M33)*(1-'Input (Extended)'!$G$20)*'Input (Extended)'!$N$16 -> 8851.98 | AT21: 11.26764859 | AU21: =(AD21*'Input (Extended)'!$G$16)+('Input (Extended)'!$C$20*'Input (Extended)'!$E$20) -> 2404.29 | AV21: =AF21/'Input (Extended)'!$O$16 -> 4903 | AW21: =AG21/'Input (Extended)'!$P$16 -> 19948.2 | AX21: =AF21/'Input (Extended)'!$Q$16 -> 326.8666667 | AY21: =AF21/'Input (Extended)'!$R$16 -> 612.875 | AZ21: =AG21/'Input (Extended)'!$S$16 -> 6649.4 | BA21: =AG21/'Input (Extended)'!$T$16 -> 6649.4
B22: Conversion of G&A beds into CC beds | C22: =ROUND((AB22-AF22)*10000/'Input (Extended)'!I20,2) -> 0.22 | D22: =ROUND((AC22-AG22)*10000/'Input (Extended)'!I20,2) -> -0.32 | E22: =ROUND((AH22-AU22)*10000/'Input (Extended)'!I20,2) -> 1.03 | F22: =ROUND((AI22-AV22)*10000/'Input (Extended)'!I20,2) -> -0.23 | G22: =ROUND((AK22-AW22)*10000/'Input (Extended)'!I20,2) -> 1.75 | H22: =ROUND((AM22-AX22)*10000/'Input (Extended)'!I20,2) -> 0.09 | I22: =ROUND((AO22-AY22)*10000/'Input (Extended)'!I20,2) -> -0.01 | J22: =ROUND((AQ22-AZ22)*10000/'Input (Extended)'!I20,2) -> 0.76 | K22: =ROUND((AS22-BA22)*10000/'Input (Extended)'!I20,2) -> 0.39 | L22: =IF(C13 = 0,0,(C22-C13)/ABS(C13)) -> 2.571428571 | M22: =IF(D13 = 0,0,(D22-D13)/ABS(D13)) -> -11.66666667 | N22: 0 | O22: 0 | P22: 0 | Q22: 0 | R22: 0 | S22: 0 | T22: 0 | U22: =AB22/'Input (Extended)'!$O$16 -> 6123 | V22: =AC22/'Input (Extended)'!$P$16 -> 19587 | W22: =AB22/'Input (Extended)'!$Q$16 -> 408.2 | X22: =AB22/'Input (Extended)'!$R$16 -> 765.375 | Y22: =AC22/'Input (Extended)'!$S$16 -> 6529 | Z22: =AC22/'Input (Extended)'!$T$16 -> 6529 | AB22: =(1+'Input (Extended)'!C34)*$AB$13 -> 6123 | AC22: =(1+'Input (Extended)'!D34)*$AC$13 -> 97935 | AD22: =(1-'Input (Extended)'!E34)*$AD$13 -> 3423 | AE22: =(1-'Input (Extended)'!F34)*$AE$13 -> 91971 | AF22: =AD22+'Input (Extended)'!$C$20 -> 4903 | AG22: =AE22+'Input (Extended)'!$D$20 -> 99741 | AH22: =(1+'Input (Extended)'!G34)*$AH$13 -> 8175 | AI22: =(1+'Input (Extended)'!H34)*(1-'Input (Extended)'!$F$20)*'Input (Extended)'!$I$16 -> 3619.941 | AJ22: 1.354441965 | AK22: =(1+'Input (Extended)'!I34)*(1-'Input (Extended)'!$F$20)*'Input (Extended)'!$J$16 -> 29733.326 | AL22: 3.354518765 | AM22: =(1+'Input (Extended)'!J34)*(1-'Input (Extended)'!$G$20)*'Input (Extended)'!$K$16 -> 829.9 | AN22: 5.907940716 | AO22: =(1+'Input (Extended)'!K34)*(1-'Input (Extended)'!$G$20)*'Input (Extended)'!$L$16 -> 582.22 | AP22: 8.421215348 | AQ22: =(1+'Input (Extended)'!L34)*(1-'Input (Extended)'!$G$20)*'Input (Extended)'!$M$16 -> 10904.8 | AR22: 9.146522632 | AS22: =(1+'Input (Extended)'!M34)*(1-'Input (Extended)'!$G$20)*'Input (Extended)'!$N$16 -> 8851.98 | AT22: 11.26764859 | AU22: =(AD22*'Input (Extended)'!$G$16)+('Input (Extended)'!$C$20*'Input (Extended)'!$E$20) -> 2404.29 | AV22: =AF22/'Input (Extended)'!$O$16 -> 4903 | AW22: =AG22/'Input (Extended)'!$P$16 -> 19948.2 | AX22: =AF22/'Input (Extended)'!$Q$16 -> 326.8666667 | AY22: =AF22/'Input (Extended)'!$R$16 -> 612.875 | AZ22: =AG22/'Input (Extended)'!$S$16 -> 6649.4 | BA22: =AG22/'Input (Extended)'!$T$16 -> 6649.4
B23: Upskill G&A staff to work in CC wards | C23: =ROUND((AB23-AF23)*10000/'Input (Extended)'!I20,2) -> -0.14 | D23: =ROUND((AC23-AG23)*10000/'Input (Extended)'!I20,2) -> 0.03 | E23: =ROUND((AH23-AU23)*10000/'Input (Extended)'!I20,2) -> 1.03 | F23: =ROUND((AI23-AV23)*10000/'Input (Extended)'!I20,2) -> -0.12 | G23: =ROUND((AK23-AW23)*10000/'Input (Extended)'!I20,2) -> 1.64 | H23: =ROUND((AM23-AX23)*10000/'Input (Extended)'!I20,2) -> 0.09 | I23: =ROUND((AO23-AY23)*10000/'Input (Extended)'!I20,2) -> 0.03 | J23: =ROUND((AQ23-AZ23)*10000/'Input (Extended)'!I20,2) -> 0.76 | K23: =ROUND((AS23-BA23)*10000/'Input (Extended)'!I20,2) -> 0.36 | L23: =IF(C13 = 0,0,(C23-C13)/ABS(C13)) -> 0 | M23: =IF(D13 = 0,0,(D23-D13)/ABS(D13)) -> 0 | N23: 0 | O23: 0.4782608696 | P23: -0.06285714286 | Q23: 0 | R23: 4 | S23: 0 | T23: -0.07692307692 | U23: =AB23/'Input (Extended)'!$O$16 -> 4123 | V23: =AC23/'Input (Extended)'!$P$16 -> 19987 | W23: =AB23/'Input (Extended)'!$Q$16 -> 274.8666667 | X23: =AB23/'Input (Extended)'!$R$16 -> 515.375 | Y23: =AC23/'Input (Extended)'!$S$16 -> 6662.333333 | Z23: =AC23/'Input (Extended)'!$T$16 -> 6662.333333 | AB23: =(1+'Input (Extended)'!C35)*$AB$13 -> 4123 | AC23: =(1+'Input (Extended)'!D35)*$AC$13 -> 99935 | AD23: =(1-'Input (Extended)'!E35)*$AD$13 -> 3423 | AE23: =(1-'Input (Extended)'!F35)*$AE$13 -> 91971 | AF23: =AD23+'Input (Extended)'!$C$20 -> 4903 | AG23: =AE23+'Input (Extended)'!$D$20 -> 99741 | AH23: =(1+'Input (Extended)'!G35)*$AH$13 -> 8175 | AI23: =(1+'Input (Extended)'!H35)*(1-'Input (Extended)'!$F$20)*'Input (Extended)'!$I$16 -> 4214.60752 | AJ23: 1.163334896 | AK23: =(1+'Input (Extended)'!I35)*(1-'Input (Extended)'!$F$20)*'Input (Extended)'!$J$16 -> 29138.65948 | AL23: 3.422978331 | AM23: =(1+'Input (Extended)'!J35)*(1-'Input (Extended)'!$G$20)*'Input (Extended)'!$K$16 -> 829.9 | AN23: 5.907940716 | AO23: =(1+'Input (Extended)'!K35)*(1-'Input (Extended)'!$G$20)*'Input (Extended)'!$L$16 -> 759.2596 | AP23: 6.457606858 | AQ23: =(1+'Input (Extended)'!L35)*(1-'Input (Extended)'!$G$20)*'Input (Extended)'!$M$16 -> 10904.8 | AR23: 9.146522632 | AS23: =(1+'Input (Extended)'!M35)*(1-'Input (Extended)'!$G$20)*'Input (Extended)'!$N$16 -> 8674.9404 | AT23: 11.49760061 | AU23: =(AD23*'Input (Extended)'!$G$16)+('Input (Extended)'!$C$20*'Input (Extended)'!$E$20) -> 2404.29 | AV23: =AF23/'Input (Extended)'!$O$16 -> 4903 | AW23: =AG23/'Input (Extended)'!$P$16 -> 19948.2 | AX23: =AF23/'Input (Extended)'!$Q$16 -> 326.8666667 | AY23: =AF23/'Input (Extended)'!$R$16 -> 612.875 | AZ23: =AG23/'Input (Extended)'!$S$16 -> 6649.4 | BA23: =AG23/'Input (Extended)'!$T$16 -> 6649.4
B24: Return of former healthcare staff | C24: =ROUND((AB24-AF24)*10000/'Input (Extended)'!I20,2) -> -0.14 | D24: =ROUND((AC24-AG24)*10000/'Input (Extended)'!I20,2) -> 0.03 | E24: =ROUND((AH24-AU24)*10000/'Input (Extended)'!I20,2) -> 1.03 | F24: =ROUND((AI24-AV24)*10000/'Input (Extended)'!I20,2) -> -0.13 | G24: =ROUND((AK24-AW24)*10000/'Input (Extended)'!I20,2) -> 2.54 | H24: =ROUND((AM24-AX24)*10000/'Input (Extended)'!I20,2) -> 0.1 | I24: =ROUND((AO24-AY24)*10000/'Input (Extended)'!I20,2) -> 0 | J24: =ROUND((AQ24-AZ24)*10000/'Input (Extended)'!I20,2) -> 0.95 | K24: =ROUND((AS24-BA24)*10000/'Input (Extended)'!I20,2) -> 0.54 | L24: =IF(C13 = 0,0,(C24-C13)/ABS(C13)) -> 0 | M24: =IF(D13 = 0,0,(D24-D13)/ABS(D13)) -> 0 | N24: 0 | O24: 0.4347826087 | P24: 0.4514285714 | Q24: 0.1111111111 | R24: 1 | S24: 0.25 | T24: 0.3846153846 | U24: =AB24/'Input (Extended)'!$O$16 -> 4123 | V24: =AC24/'Input (Extended)'!$P$16 -> 19987 | W24: =AB24/'Input (Extended)'!$Q$16 -> 274.8666667 | X24: =AB24/'Input (Extended)'!$R$16 -> 515.375 | Y24: =AC24/'Input (Extended)'!$S$16 -> 6662.333333 | Z24: =AC24/'Input (Extended)'!$T$16 -> 6662.333333 | AB24: =(1+'Input (Extended)'!C36)*$AB$13 -> 4123 | AC24: =(1+'Input (Extended)'!D36)*$AC$13 -> 99935 | AD24: =(1-'Input (Extended)'!E36)*$AD$13 -> 3423 | AE24: =(1-'Input (Extended)'!F36)*$AE$13 -> 91971 | AF24: =AD24+'Input (Extended)'!$C$20 -> 4903 | AG24: =AE24+'Input (Extended)'!$D$20 -> 99741 | AH24: =(1+'Input (Extended)'!G36)*$AH$13 -> 8175 | AI24: =(1+'Input (Extended)'!H36)*(1-'Input (Extended)'!$F$20)*'Input (Extended)'!$I$16 -> 4159.48207 | AJ24: 1.178752527 | AK24: =(1+'Input (Extended)'!I36)*(1-'Input (Extended)'!$F$20)*'Input (Extended)'!$J$16 -> 34164.98677 | AL24: 2.91939232 | AM24: =(1+'Input (Extended)'!J36)*(1-'Input (Extended)'!$G$20)*'Input (Extended)'!$K$16 -> 908.8205736 | AN24: 5.394904277 | AO24: =(1+'Input (Extended)'!K36)*(1-'Input (Extended)'!$G$20)*'Input (Extended)'!$L$16 -> 637.587076 | AP24: 7.689930026 | AQ24: =(1+'Input (Extended)'!L36)*(1-'Input (Extended)'!$G$20)*'Input (Extended)'!$M$16 -> 11941.80816 | AR24: 8.352252747 | AS24: =(1+'Input (Extended)'!M36)*(1-'Input (Extended)'!$G$20)*'Input (Extended)'!$N$16 -> 9693.772191 | AT24: 10.28918341 | AU24: =(AD24*'Input (Extended)'!$G$16)+('Input (Extended)'!$C$20*'Input (Extended)'!$E$20) -> 2404.29 | AV24: =AF24/'Input (Extended)'!$O$16 -> 4903 | AW24: =AG24/'Input (Extended)'!$P$16 -> 19948.2 | AX24: =AF24/'Input (Extended)'!$Q$16 -> 326.8666667 | AY24: =AF24/'Input (Extended)'!$R$16 -> 612.875 | AZ24: =AG24/'Input (Extended)'!$S$16 -> 6649.4 | BA24: =AG24/'Input (Extended)'!$T$16 -> 6649.4
B25: Deployment of final year nursing and medical students | C25: =ROUND((AB25-AF25)*10000/'Input (Extended)'!I20,2) -> -0.14 | D25: =ROUND((AC25-AG25)*10000/'Input (Extended)'!I20,2) -> 0.03 | E25: =ROUND((AH25-AU25)*10000/'Input (Extended)'!I20,2) -> 1.03 | F25: =ROUND((AI25-AV25)*10000/'Input (Extended)'!I20,2) -> -0.23 | G25: =ROUND((AK25-AW25)*10000/'Input (Extended)'!I20,2) -> 4.45 | H25: =ROUND((AM25-AX25)*10000/'Input (Extended)'!I20,2) -> 0.09 | I25: =ROUND((AO25-AY25)*10000/'Input (Extended)'!I20,2) -> -0.01 | J25: =ROUND((AQ25-AZ25)*10000/'Input (Extended)'!I20,2) -> 0.76 | K25: =ROUND((AS25-BA25)*10000/'Input (Extended)'!I20,2) -> 1.14 | L25: =IF(C13 = 0,0,(C25-C13)/ABS(C13)) -> 0 | M25: =IF(D13 = 0,0,(D25-D13)/ABS(D13)) -> 0 | N25: 0 | O25: 0 | P25: 1.542857143 | Q25: 0 | R25: 0 | S25: 0 | T25: 1.923076923 | U25: =AB25/'Input (Extended)'!$O$16 -> 4123 | V25: =AC25/'Input (Extended)'!$P$16 -> 19987 | W25: =AB25/'Input (Extended)'!$Q$16 -> 274.8666667 | X25: =AB25/'Input (Extended)'!$R$16 -> 515.375 | Y25: =AC25/'Input (Extended)'!$S$16 -> 6662.333333 | Z25: =AC25/'Input (Extended)'!$T$16 -> 6662.333333 | AB25: =(1+'Input (Extended)'!C37)*$AB$13 -> 4123 | AC25: =(1+'Input (Extended)'!D37)*$AC$13 -> 99935 | AD25: =(1-'Input (Extended)'!E37)*$AD$13 -> 3423 | AE25: =(1-'Input (Extended)'!F37)*$AE$13 -> 91971 | AF25: =AD25+'Input (Extended)'!$C$20 -> 4903 | AG25: =AE25+'Input (Extended)'!$D$20 -> 99741 | AH25: =(1+'Input (Extended)'!G37)*$AH$13 -> 8175 | AI25: =(1+'Input (Extended)'!H37)*(1-'Input (Extended)'!$F$20)*'Input (Extended)'!$I$16 -> 3619.941 | AJ25: 1.354441965 | AK25: =(1+'Input (Extended)'!I37)*(1-'Input (Extended)'!$F$20)*'Input (Extended)'!$J$16 -> 44856.39 | AL25: 2.223562797 | AM25: =(1+'Input (Extended)'!J37)*(1-'Input (Extended)'!$G$20)*'Input (Extended)'!$K$16 -> 829.9 | AN25: 5.907940716 | AO25: =(1+'Input (Extended)'!K37)*(1-'Input (Extended)'!$G$20)*'Input (Extended)'!$L$16 -> 582.22 | AP25: 8.421215348 | AQ25: =(1+'Input (Extended)'!L37)*(1-'Input (Extended)'!$G$20)*'Input (Extended)'!$M$16 -> 10904.8 | AR25: 9.146522632 | AS25: =(1+'Input (Extended)'!M37)*(1-'Input (Extended)'!$G$20)*'Input (Extended)'!$N$16 -> 13014.38 | AT25: 7.663907155 | AU25: =(AD25*'Input (Extended)'!$G$16)+('Input (Extended)'!$C$20*'Input (Extended)'!$E$20) -> 2404.29 | AV25: =AF25/'Input (Extended)'!$O$16 -> 4903 | AW25: =AG25/'Input (Extended)'!$P$16 -> 19948.2 | AX25: =AF25/'Input (Extended)'!$Q$16 -> 326.8666667 | AY25: =AF25/'Input (Extended)'!$R$16 -> 612.875 | AZ25: =AG25/'Input (Extended)'!$S$16 -> 6649.4 | BA25: =AG25/'Input (Extended)'!$T$16 -> 6649.4
B26: Deployment of international doctors at the final stage of their conversion assessment | C26: =ROUND((AB26-AF26)*10000/'Input (Extended)'!I20,2) -> -0.14 | D26: =ROUND((AC26-AG26)*10000/'Input (Extended)'!I20,2) -> 0.03 | E26: =ROUND((AH26-AU26)*10000/'Input (Extended)'!I20,2) -> 1.03 | F26: =ROUND((AI26-AV26)*10000/'Input (Extended)'!I20,2) -> -0.23 | G26: =ROUND((AK26-AW26)*10000/'Input (Extended)'!I20,2) -> 1.75 | H26: =ROUND((AM26-AX26)*10000/'Input (Extended)'!I20,2) -> 0.09 | I26: =ROUND((AO26-AY26)*10000/'Input (Extended)'!I20,2) -> -0.01 | J26: =ROUND((AQ26-AZ26)*10000/'Input (Extended)'!I20,2) -> 0.76 | K26: =ROUND((AS26-BA26)*10000/'Input (Extended)'!I20,2) -> 0.43 | L26: =IF(C13 = 0,0,(C26-C13)/ABS(C13)) -> 0 | M26: =IF(D13 = 0,0,(D26-D13)/ABS(D13)) -> 0 | N26: 0 | O26: 0 | P26: 0 | Q26: 0 | R26: 0 | S26: 0 | T26: 0.1025641026 | U26: =AB26/'Input (Extended)'!$O$16 -> 4123 | V26: =AC26/'Input (Extended)'!$P$16 -> 19987 | W26: =AB26/'Input (Extended)'!$Q$16 -> 274.8666667 | X26: =AB26/'Input (Extended)'!$R$16 -> 515.375 | Y26: =AC26/'Input (Extended)'!$S$16 -> 6662.333333 | Z26: =AC26/'Input (Extended)'!$T$16 -> 6662.333333 | AB26: =(1+'Input (Extended)'!C38)*$AB$13 -> 4123 | AC26: =(1+'Input (Extended)'!D38)*$AC$13 -> 99935 | AD26: =(1-'Input (Extended)'!E38)*$AD$13 -> 3423 | AE26: =(1-'Input (Extended)'!F38)*$AE$13 -> 91971 | AF26: =AD26+'Input (Extended)'!$C$20 -> 4903 | AG26: =AE26+'Input (Extended)'!$D$20 -> 99741 | AH26: =(1+'Input (Extended)'!G38)*$AH$13 -> 8175 | AI26: =(1+'Input (Extended)'!H38)*(1-'Input (Extended)'!$F$20)*'Input (Extended)'!$I$16 -> 3619.941 | AJ26: 1.354441965 | AK26: =(1+'Input (Extended)'!I38)*(1-'Input (Extended)'!$F$20)*'Input (Extended)'!$J$16 -> 29733.326 | AL26: 3.354518765 | AM26: =(1+'Input (Extended)'!J38)*(1-'Input (Extended)'!$G$20)*'Input (Extended)'!$K$16 -> 829.9 | AN26: 5.907940716 | AO26: =(1+'Input (Extended)'!K38)*(1-'Input (Extended)'!$G$20)*'Input (Extended)'!$L$16 -> 582.22 | AP26: 8.421215348 | AQ26: =(1+'Input (Extended)'!L38)*(1-'Input (Extended)'!$G$20)*'Input (Extended)'!$M$16 -> 10904.8 | AR26: 9.146522632 | AS26: =(1+'Input (Extended)'!M38)*(1-'Input (Extended)'!$G$20)*'Input (Extended)'!$N$16 -> 9079.02 | AT26: 10.98587733 | AU26: =(AD26*'Input (Extended)'!$G$16)+('Input (Extended)'!$C$20*'Input (Extended)'!$E$20) -> 2404.29 | AV26: =AF26/'Input (Extended)'!$O$16 -> 4903 | AW26: =AG26/'Input (Extended)'!$P$16 -> 19948.2 | AX26: =AF26/'Input (Extended)'!$Q$16 -> 326.8666667 | AY26: =AF26/'Input (Extended)'!$R$16 -> 612.875 | AZ26: =AG26/'Input (Extended)'!$S$16 -> 6649.4 | BA26: =AG26/'Input (Extended)'!$T$16 -> 6649.4
B27: Procurement of newly manufactured ventilators | C27: =ROUND((AB27-AF27)*10000/'Input (Extended)'!I20,2) -> -0.14 | D27: =ROUND((AC27-AG27)*10000/'Input (Extended)'!I20,2) -> 0.03 | E27: =ROUND((AH27-AU27)*10000/'Input (Extended)'!I20,2) -> 4.6 | F27: =ROUND((AI27-AV27)*10000/'Input (Extended)'!I20,2) -> -0.23 | G27: =ROUND((AK27-AW27)*10000/'Input (Extended)'!I20,2) -> 1.75 | H27: =ROUND((AM27-AX27)*10000/'Input (Extended)'!I20,2) -> 0.09 | I27: =ROUND((AO27-AY27)*10000/'Input (Extended)'!I20,2) -> -0.01 | J27: =ROUND((AQ27-AZ27)*10000/'Input (Extended)'!I20,2) -> 0.76 | K27: =ROUND((AS27-BA27)*10000/'Input (Extended)'!I20,2) -> 0.39 | L27: =IF(C13 = 0, 0,(C27-C13)/ABS(C13)) -> 0 | M27: =IF(D13 = 0, 0,(D27-D13)/ABS(D13)) -> 0 | N27: 3.466019417 | O27: 0 | P27: 0 | Q27: 0 | R27: 0 | S27: 0 | T27: 0 | U27: =AB27/'Input (Extended)'!$O$16 -> 4123 | V27: =AC27/'Input (Extended)'!$P$16 -> 19987 | W27: =AB27/'Input (Extended)'!$Q$16 -> 274.8666667 | X27: =AB27/'Input (Extended)'!$R$16 -> 515.375 | Y27: =AC27/'Input (Extended)'!$S$16 -> 6662.333333 | Z27: =AC27/'Input (Extended)'!$T$16 -> 6662.333333 | AB27: =(1+'Input (Extended)'!C39)*$AB$13 -> 4123 | AC27: =(1+'Input (Extended)'!D39)*$AC$13 -> 99935 | AD27: =(1-'Input (Extended)'!E39)*$AD$13 -> 3423 | AE27: =(1-'Input (Extended)'!F39)*$AE$13 -> 91971 | AF27: =AD27+'Input (Extended)'!$C$20 -> 4903 | AG27: =AE27+'Input (Extended)'!$D$20 -> 99741 | AH27: =(1+'Input (Extended)'!G39)*$AH$13 -> 28175 | AI27: =(1+'Input (Extended)'!H39)*(1-'Input (Extended)'!$F$20)*'Input (Extended)'!$I$16 -> 3619.941 | AJ27: 1.354441965 | AK27: =(1+'Input (Extended)'!I39)*(1-'Input (Extended)'!$F$20)*'Input (Extended)'!$J$16 -> 29733.326 | AL27: 3.354518765 | AM27: =(1+'Input (Extended)'!J39)*(1-'Input (Extended)'!$G$20)*'Input (Extended)'!$K$16 -> 829.9 | AN27: 5.907940716 | AO27: =(1+'Input (Extended)'!K39)*(1-'Input (Extended)'!$G$20)*'Input (Extended)'!$L$16 -> 582.22 | AP27: 8.421215348 | AQ27: =(1+'Input (Extended)'!L39)*(1-'Input (Extended)'!$G$20)*'Input (Extended)'!$M$16 -> 10904.8 | AR27: 9.146522632 | AS27: =(1+'Input (Extended)'!M39)*(1-'Input (Extended)'!$G$20)*'Input (Extended)'!$N$16 -> 8851.98 | AT27: 11.26764859 | AU27: =(AD27*'Input (Extended)'!$G$16)+('Input (Extended)'!$C$20*'Input (Extended)'!$E$20) -> 2404.29 | AV27: =AF27/'Input (Extended)'!$O$16 -> 4903 | AW27: =AG27/'Input (Extended)'!$P$16 -> 19948.2 | AX27: =AF27/'Input (Extended)'!$Q$16 -> 326.8666667 | AY27: =AF27/'Input (Extended)'!$R$16 -> 612.875 | AZ27: =AG27/'Input (Extended)'!$S$16 -> 6649.4 | BA27: =AG27/'Input (Extended)'!$T$16 -> 6649.4
B28: Add extra rows as necessary for additional supply-side scenarios
A30: Combination of scenarios | B30: Set up of field hospitals & deployment of newly qualified and final year medical and nursing students | C30: =ROUND((AB30-AF30)*10000 / 'Input (Extended)'!I20, 2) -> -0.05 | D30: =ROUND((AC30-AG30)*10000/'Input (Extended)'!I20,2) -> 1.46 | E30: =ROUND((AH30-AU30)*10000/'Input (Extended)'!I20,2) -> 1.03 | F30: =ROUND((AI30-AV30)*10000/'Input (Extended)'!I20,2) -> -0.23 | G30: =ROUND((AK30-AW30)*10000/'Input (Extended)'!I20,2) -> 4.45 | H30: =ROUND((AM30-AX30)*10000/'Input (Extended)'!I20,2) -> 0.09 | I30: =ROUND((AO30-AY30)*10000/'Input (Extended)'!I20,2) -> -0.01 | J30: =ROUND((AQ30-AZ30)*10000/'Input (Extended)'!I20,2) -> 0.76 | K30: =ROUND((AS30-BA30)*10000/'Input (Extended)'!I20,2) -> 1.14 | L30: =IF(C13 = 0, 0,(C30-C13)/ABS(C13)) -> 0.6428571429 | M30: 47.66666667 | N30: 0 | O30: 0 | P30: 1.542857143 | Q30: 0 | R30: 0 | S30: 0 | T30: 1.923076923 | U30: =AB30/'Input (Extended)'!$O$16 -> 4623 | V30: =AC30/'Input (Extended)'!$P$16 -> 21587 | W30: =AB30/'Input (Extended)'!$Q$16 -> 308.2 | X30: =AB30/'Input (Extended)'!$R$16 -> 577.875 | Y30: =AC30/'Input (Extended)'!$S$16 -> 7195.666667 | Z30: =AC30/'Input (Extended)'!$T$16 -> 7195.666667 | AB30: =(1+'Input (Extended)'!C42)*$AB$13 -> 4623 | AC30: =(1+'Input (Extended)'!D42)*$AC$13 -> 107935 | AD30: =(1-'Input (Extended)'!E42)*$AD$13 -> 3423 | AE30: =(1-'Input (Extended)'!F42)*$AE$13 -> 91971 | AF30: =AD30+'Input (Extended)'!$C$20 -> 4903 | AG30: =AE30+'Input (Extended)'!$D$20 -> 99741 | AH30: =(1+'Input (Extended)'!G42)*$AH$13 -> 8175 | AI30: =((1+'Input (Extended)'!H42)*'Input (Extended)'!I16)*(1-'Input (Extended)'!F20) -> 3619.941 | AJ30: =AF30/AI30 -> 1.354441965 | AK30: =((1+'Input (Extended)'!I42)*'Input (Extended)'!J16)*(1-'Input (Extended)'!$F$20) -> 44856.39 | AL30: =AG30/AK30 -> 2.223562797 | AM30: =((1+'Input (Extended)'!J42)*'Input (Extended)'!K16)*(1-'Input (Extended)'!$G$20) -> 829.9 | AN30: =AF30/AM30 -> 5.907940716 | AO30: =((1+'Input (Extended)'!K42)*'Input (Extended)'!L16)*(1-'Input (Extended)'!$G$20) -> 582.22 | AP30: =AF30/AO30 -> 8.421215348 | AQ30: =((1+'Input (Extended)'!L42)*'Input (Extended)'!M16)*(1-'Input (Extended)'!$G$20) -> 10904.8 | AR30: =AG30/AQ30 -> 9.146522632 | AS30: =((1+'Input (Extended)'!M42)*'Input (Extended)'!N16)*(1-'Input (Extended)'!$G$20) -> 13014.38 | AT30: =AG30/AS30 -> 7.663907155 | AU30: =(AD30*'Input (Extended)'!$G$16)+('Input (Extended)'!$C$20*'Input (Extended)'!$E$20) -> 2404.29 | AV30: =AF30/'Input (Extended)'!$O$16 -> 4903 | AW30: =AG30/'Input (Extended)'!$P$16 -> 19948.2 | AX30: =AF30/'Input (Extended)'!$Q$16 -> 326.8666667 | AY30: =AF30/'Input (Extended)'!$R$16 -> 612.875 | AZ30: =AG30/'Input (Extended)'!$S$16 -> 6649.4 | BA30: =AG30/'Input (Extended)'!$T$16 -> 6649.4
B31: Add extra rows as necessary for additional combinations of scenarios

Sheet Output (Graphical)
A10: OUTPUT BY CAPACITY VARIABLE
A62: OUTPUT BY INTERVENTIONS
A175: Zero | B175: Scenario | C175: CC beds | D175: Baseline | E175: CC beds Positive | F175: CC beds Negative | I175: CC Nurses | J175: Baseline | K175: CC Nurses Positive | L175: CC Nurses Negative | N175: Scenario | O175: G&A Nurses | P175: Baseline | Q175: G&A Nurses Positive | R175: G&A Nurses Negative
A176: 0 | B176: Cancel Electives | C176: ='Output (Numeric)'!C15 -> 0.04 | D176: ='Output (Numeric)'!C13 -> -0.14 | E176: =IF(C176>=0,C176,"") -> 0.04 | F176: =IF(C176<0,C176,"") ->  | H176: Cancel Electives | I176: ='Output (Numeric)'!F15 -> -0.05 | J176: ='Output (Numeric)'!F13 -> -0.23 | K176: =IF(I176>=0,I176,"") ->  | L176: =IF(I176<0,I176,"") -> -0.05 | N176: Cancel Electives | O176: ='Output (Numeric)'!G15 -> 3.1 | P176: ='Output (Numeric)'!G13 -> 1.75 | Q176: =IF(O176>=0,O176,"") -> 3.1 | R176: =IF(O176<0,O176,"") -> 
A177: 0 | B177: Triage CC | C177: ='Output (Numeric)'!C16 -> 0.23 | D177: =D176 -> -0.14 | E177: =IF(C177>=0,C177,"") -> 0.23 | F177: =IF(C177<0,C177,"") ->  | H177: Triage CC | I177: ='Output (Numeric)'!F16 -> 0.14 | J177: =J176 -> -0.23 | K177: =IF(I177>=0,I177,"") -> 0.14 | L177: =IF(I177<0,I177,"") ->  | N177: Triage CC | O177: ='Output (Numeric)'!G16 -> 1.75 | P177: =P176 -> 1.75 | Q177: =IF(O177>=0,O177,"") -> 1.75 | R177: =IF(O177<0,O177,"") -> 
A178: 0 | B178: Field Hospitals | C178: ='Output (Numeric)'!C19 -> -0.05 | D178: =D177 -> -0.14 | F178: -0.05 | H178: Field Hospitals | I178: ='Output (Numeric)'!F19 -> -0.23 | J178: =J177 -> -0.23 | L178: -0.23 | N178: Field Hospitals | O178: ='Output (Numeric)'!G19 -> 1.75 | P178: =P177 -> 1.75 | Q178: 1.75
A179: 0 | B179: Private hospital | C179: ='Output (Numeric)'!C20 -> -0.08 | D179: =D178 -> -0.14 | F179: -0.08 | H179: Private hospital | I179: ='Output (Numeric)'!F20 -> -0.07 | J179: =J178 -> -0.23 | L179: -0.07 | N179: Private hospital | O179: ='Output (Numeric)'!G20 -> 3.04 | P179: =P178 -> 1.75 | Q179: 3.04
A180: 0 | B180: Convert Theatres | C180: ='Output (Numeric)'!C21 -> 0.72 | D180: =D179 -> -0.14 | E180: 0.72 | H180: Convert Theatres | I180: ='Output (Numeric)'!F21 -> -0.23 | J180: =J179 -> -0.23 | L180: -0.23 | N180: Convert Theatres | O180: ='Output (Numeric)'!G21 -> 1.75 | P180: 1.75 | Q180: 1.75
A181: 0 | B181: Convert G&A | C181: ='Output (Numeric)'!C22 -> 0.22 | D181: =D180 -> -0.14 | E181: 0.22 | H181: Convert G&A | I181: ='Output (Numeric)'!F22 -> -0.23 | J181: -0.23 | L181: -0.23 | N181: Convert G&A | O181: ='Output (Numeric)'!G22 -> 1.75 | P181: 1.75 | Q181: 1.75
A182: 0 | B182: Upskill G&A staff | C182: ='Output (Numeric)'!C23 -> -0.14 | D182: -0.14 | F182: -0.14 | H182: Upskill G&A staff | I182: ='Output (Numeric)'!F23 -> -0.12 | J182: -0.23 | L182: -0.12 | N182: Upskill G&A staff | O182: ='Output (Numeric)'!G23 -> 1.64 | P182: 1.75 | Q182: 1.64
A183: 0 | B183: Returning staff | C183: ='Output (Numeric)'!C24 -> -0.14 | D183: -0.14 | F183: -0.14 | H183: Returning staff | I183: ='Output (Numeric)'!F24 -> -0.13 | J183: -0.23 | L183: -0.13 | N183: Returning staff | O183: ='Output (Numeric)'!G24 -> 2.54 | P183: 1.75 | Q183: 2.54
A184: 0 | B184: Student deployment | C184: ='Output (Numeric)'!C25 -> -0.14 | D184: =D183 -> -0.14 | F184: =IF(C184<0,C184,"") -> -0.14 | H184: Student deployment | I184: ='Output (Numeric)'!F25 -> -0.23 | J184: -0.23 | L184: -0.23 | N184: Student deployment | O184: ='Output (Numeric)'!G25 -> 4.45 | P184: 1.75 | Q184: 4.45
A185: 0 | B185: International doctors | C185: ='Output (Numeric)'!C26 -> -0.14 | D185: =D184 -> -0.14 | F185: -0.14 | H185: International doctors | I185: ='Output (Numeric)'!F26 -> -0.23 | J185: -0.23 | L185: -0.23 | N185: International doctors | O185: ='Output (Numeric)'!G26 -> 1.75 | P185: 1.75 | Q185: 1.75
A186: 0 | B186: New ventilators | C186: ='Output (Numeric)'!C27 -> -0.14 | D186: =D185 -> -0.14 | F186: -0.14 | H186: New ventilators | I186: ='Output (Numeric)'!F27 -> -0.23 | J186: -0.23 | L186: -0.23 | N186: New ventilators | O186: ='Output (Numeric)'!G27 -> 1.75 | P186: 1.75 | Q186: 1.75
A187: 0 | B187: Combination | C187: ='Output (Numeric)'!C30 -> -0.05 | D187: =D186 -> -0.14 | F187: -0.05 | H187: Combination | I187: ='Output (Numeric)'!F30 -> -0.23 | J187: -0.23 | L187: -0.23 | N187: Combination | O187: ='Output (Numeric)'!G30 -> 4.45 | P187: 1.75 | Q187: 4.45
A188: Zero | B188: Scenario | C188: G&A beds | D188: Baseline | E188: G&A beds Positive | F188: G&A beds Negative | H188: Scenario | I188: CC Senior Doctors | J188: Baseline | K188: CC Senior Doctors Positive | L188: CC Senior Doctors Negative | N188: Scenario | O188: G&A Senior Doctors | P188: Baseline | Q188: G&A Senior Doctors Positive | R188: G&A Senior Doctors Negative
A189: 0 | B189: Cancel Electives | C189: ='Output (Numeric)'!D15 -> 6.77 | D189: ='Output (Numeric)'!D13 -> 0.03 | E189: =IF(C189>=0,C189,"") -> 6.77 | F189: =IF(C189<0,C189,"") ->  | H189: Cancel Electives | I189: ='Output (Numeric)'!H15 -> 0.1 | J189: ='Output (Numeric)'!H13 -> 0.09 | K189: =IF(I189>=0,I189,"") -> 0.1 | L189: =IF(I189<0,I189,"") ->  | N189: Cancel Electives | O189: ='Output (Numeric)'!J15 -> 1.21 | P189: ='Output (Numeric)'!J13 -> 0.76 | Q189: =IF(O189>=0,O189,"") -> 1.21 | R189: =IF(O189<0,O189,"") -> 
A190: 0 | B190: Triage CC | C190: ='Output (Numeric)'!D16 -> 0.03 | D190: =D189 -> 0.03 | E190: =IF(C190>=0,C190,"") -> 0.03 | F190: =IF(C190<0,C190,"") ->  | H190: Triage CC | I190: ='Output (Numeric)'!H16 -> 0.11 | J190: =J189 -> 0.09 | K190: =IF(I190>=0,I190,"") -> 0.11 | L190: =IF(I190<0,I190,"") ->  | N190: Triage CC | O190: ='Output (Numeric)'!J16 -> 0.76 | P190: =P189 -> 0.76 | Q190: =IF(O190>=0,O190,"") -> 0.76 | R190: =IF(O190<0,O190,"") -> 
A191: 0 | B191: Field Hospitals | C191: ='Output (Numeric)'!D19 -> 1.46 | D191: =D189 -> 0.03 | E191: 1.46 | H191: Field Hospitals | I191: ='Output (Numeric)'!H19 -> 0.09 | J191: =J190 -> 0.09 | K191: 0.09 | N191: Field Hospitals | O191: ='Output (Numeric)'!J19 -> 0.76 | P191: =P190 -> 0.76 | Q191: 0.76
A192: 0 | B192: Private hospital | C192: ='Output (Numeric)'!D20 -> 1.41 | D192: =D189 -> 0.03 | E192: 1.41 | H192: Private hospital | I192: ='Output (Numeric)'!H20 -> 0.09 | J192: =J191 -> 0.09 | K192: 0.09 | N192: Private hospital | O192: ='Output (Numeric)'!J20 -> 0.81 | P192: =P191 -> 0.76 | Q192: 0.81
A193: 0 | B193: Convert Theatres | C193: ='Output (Numeric)'!D21 -> 0.03 | D193: =D189 -> 0.03 | E193: 0.03 | H193: Convert Theatres | I193: ='Output (Numeric)'!H21 -> 0.09 | J193: 0.09 | K193: 0.09 | N193: Convert Theatres | O193: ='Output (Numeric)'!J21 -> 0.76 | P193: 0.76 | Q193: 0.76
A194: 0 | B194: Convert G&A | C194: ='Output (Numeric)'!D22 -> -0.32 | D194: =D189 -> 0.03 | F194: -0.32 | H194: Convert G&A | I194: ='Output (Numeric)'!H22 -> 0.09 | J194: 0.09 | K194: 0.09 | N194: Convert G&A | O194: ='Output (Numeric)'!J22 -> 0.76 | P194: 0.76 | Q194: 0.76
A195: 0 | B195: Upskill G&A staff | C195: ='Output (Numeric)'!D23 -> 0.03 | D195: =D189 -> 0.03 | E195: 0.03 | H195: Upskill G&A staff | I195: ='Output (Numeric)'!H23 -> 0.09 | J195: 0.09 | K195: 0.09 | N195: Upskill G&A staff | O195: ='Output (Numeric)'!J23 -> 0.76 | P195: 0.76 | Q195: 0.76
A196: 0 | B196: Returning staff | C196: ='Output (Numeric)'!D24 -> 0.03 | D196: =D189 -> 0.03 | E196: 0.03 | H196: Returning staff | I196: ='Output (Numeric)'!H24 -> 0.1 | J196: 0.09 | K196: 0.1 | N196: Returning staff | O196: ='Output (Numeric)'!J24 -> 0.95 | P196: 0.76 | Q196: 0.95
A197: 0 | B197: Student deployment | C197: ='Output (Numeric)'!D25 -> 0.03 | D197: =D189 -> 0.03 | E197: 0.03 | H197: Student deployment | I197: ='Output (Numeric)'!H25 -> 0.09 | J197: 0.09 | K197: 0.09 | N197: Student deployment | O197: ='Output (Numeric)'!J25 -> 0.76 | P197: 0.76 | Q197: 0.76
A198: 0 | B198: International doctors | C198: ='Output (Numeric)'!D26 -> 0.03 | D198: =D189 -> 0.03 | E198: 0.03 | H198: International doctors | I198: ='Output (Numeric)'!H26 -> 0.09 | J198: 0.09 | K198: 0.09 | N198: International doctors | O198: ='Output (Numeric)'!J26 -> 0.76 | P198: 0.76 | Q198: 0.76
A199: 0 | B199: New ventilators | C199: ='Output (Numeric)'!D27 -> 0.03 | D199: =D189 -> 0.03 | E199: 0.03 | H199: New ventilators | I199: ='Output (Numeric)'!H27 -> 0.09 | J199: 0.09 | K199: 0.09 | N199: New ventilators | O199: ='Output (Numeric)'!J27 -> 0.76 | P199: 0.76 | Q199: 0.76
A200: 0 | B200: Combination | C200: ='Output (Numeric)'!D30 -> 1.46 | D200: =D189 -> 0.03 | E200: 1.46 | H200: Combination | I200: ='Output (Numeric)'!H30 -> 0.09 | J200: 0.09 | K200: 0.09 | N200: Combination | O200: ='Output (Numeric)'!J30 -> 0.76 | P200: 0.76 | Q200: 0.76
A201: Zero | B201: Scenario | C201: Ventilators | D201: Baseline | E201: Ventilators Positive | F201: Ventilators Negative | H201: Scenario | I201: CC Junior Doctors | J201: Baseline | K201: CC Junior Doctors Positive | L201: CC Junior Doctors Negative | N201: Scenario | O201: G&A Junior Doctors | P201: Baseline | Q201: G&A Junior Doctors Positive | R201: G&A Junior Doctors Negative
A202: 0 | B202: Cancel Electives | C202: ='Output (Numeric)'!E15 -> 1.11 | D202: ='Output (Numeric)'!E13 -> 1.03 | E202: =IF(C202>=0,C202,"") -> 1.11 | F202: =IF(C202<0, C202,"") ->  | H202: Cancel Electives | I202: ='Output (Numeric)'!I15 -> 0.02 | J202: ='Output (Numeric)'!I13 -> -0.01 | K202: =IF(I202>=0,I202,"") -> 0.02 | L202: =IF(I202<0,I202,"") ->  | N202: Cancel Electives | O202: ='Output (Numeric)'!K15 -> 0.84 | P202: ='Output (Numeric)'!K13 -> 0.39 | Q202: =IF(O202>=0,O202,"") -> 0.84 | R202: =IF(O202<0,O202,"") -> 
A203: 0 | B203: Triage CC | C203: ='Output (Numeric)'!E16 -> 1.19 | D203: =D202 -> 1.03 | E203: =IF(C203>=0,C203,"") -> 1.19 | F203: =IF(C203<0, C203,"") ->  | H203: Triage CC | I203: ='Output (Numeric)'!I16 -> 0.04 | J203: =J202 -> -0.01 | K203: =IF(I203>=0,I203,"") -> 0.04 | L203: =IF(I203<0,I203,"") ->  | N203: Triage CC | O203: ='Output (Numeric)'!K16 -> 0.39 | P203: =P202 -> 0.39 | Q203: =IF(O203>=0,O203,"") -> 0.39 | R203: =IF(O203<0,O203,"") -> 
A204: 0 | B204: Field Hospitals | C204: ='Output (Numeric)'!E19 -> 1.03 | D204: 1.03 | E204: 1.03 | H204: Field Hospitals | I204: ='Output (Numeric)'!I19 -> -0.01 | J204: =J203 -> -0.01 | L204: -0.01 | N204: Field Hospitals | O204: ='Output (Numeric)'!K19 -> 0.39 | P204: =P203 -> 0.39 | Q204: 0.39
A205: 0 | B205: Private hospital | C205: ='Output (Numeric)'!E20 -> 1.25 | D205: 1.03 | E205: 1.25 | H205: Private hospital | I205: ='Output (Numeric)'!I20 -> 0 | J205: =J204 -> -0.01 | K205: 0 | N205: Private hospital | O205: ='Output (Numeric)'!K20 -> 0.43 | P205: =P204 -> 0.39 | Q205: 0.43
A206: 0 | B206: Convert Theatres | C206: ='Output (Numeric)'!E21 -> 1.03 | D206: 1.03 | E206: 1.03 | H206: Convert Theatres | I206: ='Output (Numeric)'!I21 -> -0.01 | J206: -0.01 | L206: -0.01 | N206: Convert Theatres | O206: ='Output (Numeric)'!K21 -> 0.39 | P206: 0.39 | Q206: 0.39
A207: 0 | B207: Convert G&A | C207: ='Output (Numeric)'!E22 -> 1.03 | D207: 1.03 | E207: 1.03 | H207: Convert G&A | I207: ='Output (Numeric)'!I22 -> -0.01 | J207: -0.01 | L207: -0.01 | N207: Convert G&A | O207: ='Output (Numeric)'!K22 -> 0.39 | P207: 0.39 | Q207: 0.39
A208: 0 | B208: Upskill G&A staff | C208: ='Output (Numeric)'!E23 -> 1.03 | D208: 1.03 | E208: 1.03 | H208: Upskill G&A staff | I208: ='Output (Numeric)'!I23 -> 0.03 | J208: -0.01 | K208: 0.03 | N208: Upskill G&A staff | O208: ='Output (Numeric)'!K23 -> 0.36 | P208: 0.39 | Q208: 0.36
A209: 0 | B209: Returning staff | C209: ='Output (Numeric)'!E24 -> 1.03 | D209: 1.03 | E209: 1.03 | H209: Returning staff | I209: ='Output (Numeric)'!I24 -> 0 | J209: -0.01 | K209: 0 | N209: Returning staff | O209: ='Output (Numeric)'!K24 -> 0.54 | P209: 0.39 | Q209: 0.54
A210: 0 | B210: Student deployment | C210: ='Output (Numeric)'!E25 -> 1.03 | D210: 1.03 | E210: 1.03 | H210: Student deployment | I210: ='Output (Numeric)'!I25 -> -0.01 | J210: -0.01 | L210: -0.01 | N210: Student deployment | O210: ='Output (Numeric)'!K25 -> 1.14 | P210: 0.39 | Q210: 1.14
A211: 0 | B211: International doctors | C211: ='Output (Numeric)'!E26 -> 1.03 | D211: 1.03 | E211: 1.03 | H211: International doctors | I211: ='Output (Numeric)'!I26 -> -0.01 | J211: -0.01 | L211: -0.01 | N211: International doctors | O211: ='Output (Numeric)'!K26 -> 0.43 | P211: 0.39 | Q211: 0.43
A212: 0 | B212: New ventilators | C212: ='Output (Numeric)'!E27 -> 4.6 | D212: 1.03 | E212: 4.6 | H212: New ventilators | I212: ='Output (Numeric)'!I27 -> -0.01 | J212: -0.01 | L212: -0.01 | N212: New ventilators | O212: ='Output (Numeric)'!K27 -> 0.39 | P212: 0.39 | Q212: 0.39
A213: 0 | B213: Combination | C213: ='Output (Numeric)'!E30 -> 1.03 | D213: 1.03 | E213: 1.03 | H213: Combination | I213: ='Output (Numeric)'!I30 -> -0.01 | J213: -0.01 | L213: -0.01 | N213: Combination | O213: ='Output (Numeric)'!K30 -> 1.14 | P213: 0.39 | Q213: 1.14
A217: =TRANSPOSE(A271:J284) -> 0 | B217: Baseline | C217: Cancellation of elective operations | D217: National guidelines for the prioritisation of CC scenarios | E217: Set up of field hospitals | F217: Use of private hospital resources | G217: Conversion of operating theatres to CC wards | H217: Conversion of G&A beds into CC beds | I217: Upskill G&A staff to work in CC wards | J217: Return of former healthcare staff | K217: Deployment of final year nursing and medical students | L217: Deployment of international doctors at the final stage of their conversion assessment | M217: Procurement of newly manufactured ventilators | N217: Set up of field hospitals & deployment of newly qualified and final year medical and nursing students
A218: CC beds | B218: -0.14 | C218: 0.04 | D218: 0.23 | E218: -0.05 | F218: -0.08 | G218: 0.72 | H218: 0.22 | I218: -0.14 | J218: -0.14 | K218: -0.14 | L218: -0.14 | M218: -0.14 | N218: -0.05
A219: G&A beds | B219: 0.03 | C219: 6.77 | D219: 0.03 | E219: 1.46 | F219: 1.41 | G219: 0.03 | H219: -0.32 | I219: 0.03 | J219: 0.03 | K219: 0.03 | L219: 0.03 | M219: 0.03 | N219: 1.46
A220: Ventilators | B220: 1.03 | C220: 1.11 | D220: 1.19 | E220: 1.03 | F220: 1.25 | G220: 1.03 | H220: 1.03 | I220: 1.03 | J220: 1.03 | K220: 1.03 | L220: 1.03 | M220: 4.6 | N220: 1.03
A221: CC nurses | B221: -0.23 | C221: -0.05 | D221: 0.14 | E221: -0.23 | F221: -0.07 | G221: -0.23 | H221: -0.23 | I221: -0.12 | J221: -0.13 | K221: -0.23 | L221: -0.23 | M221: -0.23 | N221: -0.23
A222: G&A nurses | B222: 1.75 | C222: 3.1 | D222: 1.75 | E222: 1.75 | F222: 3.04 | G222: 1.75 | H222: 1.75 | I222: 1.64 | J222: 2.54 | K222: 4.45 | L222: 1.75 | M222: 1.75 | N222: 4.45
A223: CC senior doctors | B223: 0.09 | C223: 0.1 | D223: 0.11 | E223: 0.09 | F223: 0.09 | G223: 0.09 | H223: 0.09 | I223: 0.09 | J223: 0.1 | K223: 0.09 | L223: 0.09 | M223: 0.09 | N223: 0.09
A224: CC junior doctors | B224: -0.01 | C224: 0.02 | D224: 0.04 | E224: -0.01 | F224: 0 | G224: -0.01 | H224: -0.01 | I224: 0.03 | J224: 0 | K224: -0.01 | L224: -0.01 | M224: -0.01 | N224: -0.01
A225: G&A senior doctors | B225: 0.76 | C225: 1.21 | D225: 0.76 | E225: 0.76 | F225: 0.81 | G225: 0.76 | H225: 0.76 | I225: 0.76 | J225: 0.95 | K225: 0.76 | L225: 0.76 | M225: 0.76 | N225: 0.76
A226: G&A junior doctors | B226: 0.39 | C226: 0.84 | D226: 0.39 | E226: 0.39 | F226: 0.43 | G226: 0.39 | H226: 0.39 | I226: 0.36 | J226: 0.54 | K226: 1.14 | L226: 0.43 | M226: 0.39 | N226: 1.14
B230: Baseline positive | C230: Cancel Electives Positive | D230: Triage CC Positive | E230: Field Hospitals Positive | F230: Private hospital Positive | G230: Convert Theatres Positive | H230: Convert G&A Positive | I230: Upskill G&A staff Positive | J230: Returning staff Positive | K230: Student deployment Positive | L230: International doctors Positive | M230: New ventilators Positive | N230: Combination Positive
A231: =A218 -> CC beds | B231: =IF(B218>=0,B218,"") ->  | C231: =IF(C218>=0,C218,"") -> 0.04 | D231: 0.23 | G231: 0.72 | H231: 0.22
A232: =A219 -> G&A beds | B232: =IF(B219>=0,B219,"") -> 0.03 | C232: 6.77 | D232: 0.03 | E232: 1.46 | F232: 1.41 | G232: 0.03 | I232: 0.03 | J232: 0.03 | K232: 0.03 | L232: 0.03 | M232: 0.03 | N232: 1.46
A233: =A220 -> Ventilators | B233: 1.03 | C233: 1.11 | D233: 1.19 | E233: 1.03 | F233: 1.25 | G233: 1.03 | H233: 1.03 | I233: 1.03 | J233: 1.03 | K233: 1.03 | L233: 1.03 | M233: 4.6 | N233: 1.03
A234: =A221 -> CC nurses | D234: 0.14
A235: =A222 -> G&A nurses | B235: 1.75 | C235: 3.1 | D235: 1.75 | E235: 1.75 | F235: 3.04 | G235: 1.75 | H235: 1.75 | I235: 1.64 | J235: 2.54 | K235: 4.45 | L235: 1.75 | M235: 1.75 | N235: 4.45
A236: =A223 -> CC senior doctors | B236: 0.09 | C236: 0.1 | D236: 0.11 | E236: 0.09 | F236: 0.09 | G236: 0.09 | H236: 0.09 | I236: 0.09 | J236: 0.1 | K236: 0.09 | L236: 0.09 | M236: 0.09 | N236: 0.09
A237: =A224 -> CC junior doctors | C237: 0.02 | D237: 0.04 | F237: 0 | I237: 0.03 | J237: 0
A238: =A225 -> G&A senior doctors | B238: 0.76 | C238: 1.21 | D238: 0.76 | E238: 0.76 | F238: 0.81 | G238: 0.76 | H238: 0.76 | I238: 0.76 | J238: 0.95 | K238: 0.76 | L238: 0.76 | M238: 0.76 | N238: 0.76
A239: =A226 -> G&A junior doctors | B239: 0.39 | C239: 0.84 | D239: 0.39 | E239: 0.39 | F239: 0.43 | G239: 0.39 | H239: 0.39 | I239: 0.36 | J239: 0.54 | K239: 1.14 | L239: 0.43 | M239: 0.39 | N239: 1.14
B242: Baseline negative | C242: Cancel Electives Negative | D242: Triage CC Negative | E242: Field Hospitals Negative | F242: Private hospital Negative | G242: Convert Theatres Negative | H242: Convert G&A Negative | I242: Upskill G&A staff Negative | J242: Returning staff Negative | K242: Student deployment Negative | L242: International doctors Negative | M242: New ventilators Negative | N242: Combination Negative
A243: =A218 -> CC beds | B243: =IF(B218<0,B218,"") -> -0.14 | C243: =IF(C218<0,C218,"") ->  | E243: -0.05 | F243: -0.08 | I243: -0.14 | J243: -0.14 | K243: -0.14 | L243: -0.14 | M243: -0.14 | N243: -0.05
A244: =A219 -> G&A beds | B244: =IF(B219<0,B219,"") ->  | H244: -0.32
A245: =A220 -> Ventilators | B245: =IF(B220<0,B220,"") -> 
A246: =A221 -> CC nurses | B246: =IF(B221<0,B221,"") -> -0.23 | C246: -0.05 | E246: -0.23 | F246: -0.07 | G246: -0.23 | H246: -0.23 | I246: -0.12 | J246: -0.13 | K246: -0.23 | L246: -0.23 | M246: -0.23 | N246: -0.23
A247: =A222 -> G&A nurses | B247: =IF(B222<0,B222,"") -> 
A248: =A223 -> CC senior doctors | B248: =IF(B223<0,B223,"") -> 
A249: =A224 -> CC junior doctors | B249: =IF(B224<0,B224,"") -> -0.01 | E249: -0.01 | G249: -0.01 | H249: -0.01 | K249: -0.01 | L249: -0.01 | M249: -0.01 | N249: -0.01
A250: =A225 -> G&A senior doctors | B250: =IF(B225<0,B225,"") -> 
A251: =A226 -> G&A junior doctors | B251: =IF(B226<0,B226,"") -> 
B255: Zero
A256: =A231 -> CC beds | B256: 0
A257: =A232 -> G&A beds | B257: 0
A258: =A233 -> Ventilators | B258: 0
A259: =A234 -> CC nurses | B259: 0
A260: =A235 -> G&A nurses | B260: 0
A261: =A236 -> CC senior doctors | B261: 0
A262: =A237 -> CC junior doctors | B262: 0
A263: =A238 -> G&A senior doctors | B263: 0
A264: G&A junior doctors | B264: 0
B271: ='Output (Numeric)'!C11 -> CC beds | C271: ='Output (Numeric)'!D11 -> G&A beds | D271: ='Output (Numeric)'!E11 -> Ventilators | E271: ='Output (Numeric)'!F11 -> CC nurses | F271: ='Output (Numeric)'!G11 -> G&A nurses | G271: ='Output (Numeric)'!H11 -> CC senior doctors | H271: ='Output (Numeric)'!I11 -> CC junior doctors | I271: ='Output (Numeric)'!J11 -> G&A senior doctors | J271: ='Output (Numeric)'!K11 -> G&A junior doctors
A272: Baseline | B272: ='Output (Numeric)'!C13 -> -0.14 | C272: ='Output (Numeric)'!D13 -> 0.03 | D272: ='Output (Numeric)'!E13 -> 1.03 | E272: ='Output (Numeric)'!F13 -> -0.23 | F272: ='Output (Numeric)'!G13 -> 1.75 | G272: ='Output (Numeric)'!H13 -> 0.09 | H272: ='Output (Numeric)'!I13 -> -0.01 | I272: ='Output (Numeric)'!J13 -> 0.76 | J272: ='Output (Numeric)'!K13 -> 0.39
A273: ='Output (Numeric)'!B15 -> Cancellation of elective operations | B273: ='Output (Numeric)'!C15 -> 0.04 | C273: ='Output (Numeric)'!D15 -> 6.77 | D273: ='Output (Numeric)'!E15 -> 1.11 | E273: ='Output (Numeric)'!F15 -> -0.05 | F273: ='Output (Numeric)'!G15 -> 3.1 | G273: ='Output (Numeric)'!H15 -> 0.1 | H273: ='Output (Numeric)'!I15 -> 0.02 | I273: ='Output (Numeric)'!J15 -> 1.21 | J273: ='Output (Numeric)'!K15 -> 0.84
A274: ='Output (Numeric)'!B16 -> National guidelines for the prioritisation of CC scenarios | B274: ='Output (Numeric)'!C16 -> 0.23 | C274: ='Output (Numeric)'!D16 -> 0.03 | D274: ='Output (Numeric)'!E16 -> 1.19 | E274: ='Output (Numeric)'!F16 -> 0.14 | F274: ='Output (Numeric)'!G16 -> 1.75 | G274: ='Output (Numeric)'!H16 -> 0.11 | H274: ='Output (Numeric)'!I16 -> 0.04 | I274: ='Output (Numeric)'!J16 -> 0.76 | J274: ='Output (Numeric)'!K16 -> 0.39
A275: ='Output (Numeric)'!B19 -> Set up of field hospitals | B275: ='Output (Numeric)'!C19 -> -0.05 | C275: ='Output (Numeric)'!D19 -> 1.46 | D275: ='Output (Numeric)'!E19 -> 1.03 | E275: ='Output (Numeric)'!F19 -> -0.23 | F275: ='Output (Numeric)'!G19 -> 1.75 | G275: ='Output (Numeric)'!H19 -> 0.09 | H275: ='Output (Numeric)'!I19 -> -0.01 | I275: ='Output (Numeric)'!J19 -> 0.76 | J275: ='Output (Numeric)'!K19 -> 0.39
A276: ='Output (Numeric)'!B20 -> Use of private hospital resources | B276: ='Output (Numeric)'!C20 -> -0.08 | C276: ='Output (Numeric)'!D20 -> 1.41 | D276: ='Output (Numeric)'!E20 -> 1.25 | E276: ='Output (Numeric)'!F20 -> -0.07 | F276: ='Output (Numeric)'!G20 -> 3.04 | G276: ='Output (Numeric)'!H20 -> 0.09 | H276: ='Output (Numeric)'!I20 -> 0 | I276: ='Output (Numeric)'!J20 -> 0.81 | J276: ='Output (Numeric)'!K20 -> 0.43
A277: ='Output (Numeric)'!B21 -> Conversion of operating theatres to CC wards | B277: ='Output (Numeric)'!C21 -> 0.72 | C277: ='Output (Numeric)'!D21 -> 0.03 | D277: ='Output (Numeric)'!E21 -> 1.03 | E277: ='Output (Numeric)'!F21 -> -0.23 | F277: ='Output (Numeric)'!G21 -> 1.75 | G277: ='Output (Numeric)'!H21 -> 0.09 | H277: ='Output (Numeric)'!I21 -> -0.01 | I277: ='Output (Numeric)'!J21 -> 0.76 | J277: ='Output (Numeric)'!K21 -> 0.39
A278: ='Output (Numeric)'!B22 -> Conversion of G&A beds into CC beds | B278: ='Output (Numeric)'!C22 -> 0.22 | C278: ='Output (Numeric)'!D22 -> -0.32 | D278: ='Output (Numeric)'!E22 -> 1.03 | E278: ='Output (Numeric)'!F22 -> -0.23 | F278: ='Output (Numeric)'!G22 -> 1.75 | G278: ='Output (Numeric)'!H22 -> 0.09 | H278: ='Output (Numeric)'!I22 -> -0.01 | I278: ='Output (Numeric)'!J22 -> 0.76 | J278: ='Output (Numeric)'!K22 -> 0.39
A279: ='Output (Numeric)'!B23 -> Upskill G&A staff to work in CC wards | B279: ='Output (Numeric)'!C23 -> -0.14 | C279: ='Output (Numeric)'!D23 -> 0.03 | D279: ='Output (Numeric)'!E23 -> 1.03 | E279: ='Output (Numeric)'!F23 -> -0.12 | F279: ='Output (Numeric)'!G23 -> 1.64 | G279: ='Output (Numeric)'!H23 -> 0.09 | H279: ='Output (Numeric)'!I23 -> 0.03 | I279: ='Output (Numeric)'!J23 -> 0.76 | J279: ='Output (Numeric)'!K23 -> 0.36
A280: ='Output (Numeric)'!B24 -> Return of former healthcare staff | B280: ='Output (Numeric)'!C24 -> -0.14 | C280: ='Output (Numeric)'!D24 -> 0.03 | D280: ='Output (Numeric)'!E24 -> 1.03 | E280: ='Output (Numeric)'!F24 -> -0.13 | F280: ='Output (Numeric)'!G24 -> 2.54 | G280: ='Output (Numeric)'!H24 -> 0.1 | H280: ='Output (Numeric)'!I24 -> 0 | I280: ='Output (Numeric)'!J24 -> 0.95 | J280: ='Output (Numeric)'!K24 -> 0.54
A281: ='Output (Numeric)'!B25 -> Deployment of final year nursing and medical students | B281: ='Output (Numeric)'!C25 -> -0.14 | C281: ='Output (Numeric)'!D25 -> 0.03 | D281: ='Output (Numeric)'!E25 -> 1.03 | E281: ='Output (Numeric)'!F25 -> -0.23 | F281: ='Output (Numeric)'!G25 -> 4.45 | G281: ='Output (Numeric)'!H25 -> 0.09 | H281: ='Output (Numeric)'!I25 -> -0.01 | I281: ='Output (Numeric)'!J25 -> 0.76 | J281: ='Output (Numeric)'!K25 -> 1.14
A282: ='Output (Numeric)'!B26 -> Deployment of international doctors at the final stage of their conversion assessment | B282: ='Output (Numeric)'!C26 -> -0.14 | C282: ='Output (Numeric)'!D26 -> 0.03 | D282: ='Output (Numeric)'!E26 -> 1.03 | E282: ='Output (Numeric)'!F26 -> -0.23 | F282: ='Output (Numeric)'!G26 -> 1.75 | G282: ='Output (Numeric)'!H26 -> 0.09 | H282: ='Output (Numeric)'!I26 -> -0.01 | I282: ='Output (Numeric)'!J26 -> 0.76 | J282: ='Output (Numeric)'!K26 -> 0.43
A283: ='Output (Numeric)'!B27 -> Procurement of newly manufactured ventilators | B283: ='Output (Numeric)'!C27 -> -0.14 | C283: ='Output (Numeric)'!D27 -> 0.03 | D283: ='Output (Numeric)'!E27 -> 4.6 | E283: ='Output (Numeric)'!F27 -> -0.23 | F283: ='Output (Numeric)'!G27 -> 1.75 | G283: ='Output (Numeric)'!H27 -> 0.09 | H283: ='Output (Numeric)'!I27 -> -0.01 | I283: ='Output (Numeric)'!J27 -> 0.76 | J283: ='Output (Numeric)'!K27 -> 0.39
A284: ='Output (Numeric)'!B30 -> Set up of field hospitals & deployment of newly qualified and final year medical and nursing students | B284: ='Output (Numeric)'!C30 -> -0.05 | C284: ='Output (Numeric)'!D30 -> 1.46 | D284: ='Output (Numeric)'!E30 -> 1.03 | E284: ='Output (Numeric)'!F30 -> -0.23 | F284: ='Output (Numeric)'!G30 -> 4.45 | G284: ='Output (Numeric)'!H30 -> 0.09 | H284: ='Output (Numeric)'!I30 -> -0.01 | I284: ='Output (Numeric)'!J30 -> 0.76 | J284: ='Output (Numeric)'!K30 -> 1.14
